Cogmind - Beta 12 @@@ ROGUE MODE // 2024.01.19 @ 15:21:02 Player: Dosh Result: Escaped! Performance ------------- Evolutions (9) 4500 Regions Visited (35) 7000 Robots Destroyed (763) 3815 Value Destroyed (35044) 35044 Prototype IDs (69) 1380 Alien Tech Used (1) 200 Bonus (25860) 25860 TOTAL SCORE: 77799 Bonus ------- Triggered High Security 500 High Alert Combat Kills 12863 Follower Combat Kills 2176 Entered Garrisons 200 Aligned with FarCom 300 Met Data Miner 300 Destroyed Z-Imprinter 1000 Triggered Deep Caves Wall 500 Exposed GOLEM Chamber 500 Met Warlord at Base 500 MAIN.C Attacked Warlord 500 Warlord Defense Kills 1126 Met Warlord at Research 2000 Invited to Help at Command 2000 Win 3000 Friendly Fire -1605 Cogmind --------- Core Integrity 986/1600 Matter 123/600 Energy 33/100 System Corruption 21% Temperature Cool (2) Movement Walking (260) Ox2 Location To Epsilon Eridani Parts ------- > --- POWER (3) -------- (None) > --- PROPULSION (6) --- Centrium Leg > --- UTILITY (12) ----- Huge Storage Unit Improved Matter Compressor Improved Hacking Suite Improved Hacking Suite Improved System Shield > --- WEAPON (4) ------- (None) > --- INVENTORY (25) --- Wheel Medium Storage Unit Structural Scanner Advanced Sensor Array Terrain Scanner Transdimensional Reconstructor XL Autogun Subcomponent Advanced Micro-nuke Launcher Peak State ------------ > --- POWER ------------ Assembled Flux Generator Light Quantum Reactor > --- PROPULSION ------- Assembled Alloy Leg Assembled Alloy Leg Centrium Leg Centrium Leg Centrium Leg Centrium Leg > --- UTILITY ---------- Huge Storage Unit Assembled Biocell Array Spectral Analyzer Assembled Combat Suite Cloak of Protection Improved Medium Armor Plating Improved Medium Armor Plating Assembled Alloy Armor Force Field Improved Hacking Suite GOLEM Unit > --- WEAPON ----------- Assembled Focal Cannon Assembled Focal Cannon Assembled Focal Cannon Tiamat Missile Launcher > --- INVENTORY -------- Light Antimatter Reactor Zionite Light DM Reactor Light Quantum Reactor Vortex Chain Reactor Enhanced Biometal Leg Centrium Leg Improved Matter Compressor Improved Kinecellerator Heavy Armor Plating Improved Hacking Suite Improved Hacking Suite Improved System Shield Transdimensional Reconstructor XL Autogun Array RU-N14's Throwing Claymores [Rating: 208] Favorites ----------- Power Assembled Flux Generator Engine Improved Deuterium Engine Power Core Fission Core Reactor Assembled Flux Generator Propulsion Assembled Alloy Leg Treads Armored Treads Leg Assembled Alloy Leg Wheel Wheel Hover Unit Backup Propulsion III Flight Unit Cooled Nuclear Pulse Thruster Utility Huge Storage Unit Device GOLEM Unit Storage Huge Storage Unit Processor Advanced Targeting Computer Hackware Hacking Suite Protection Improved Medium Armor Plating Weapon Assembled Focal Cannon Energy Gun Particle Gun Energy Cannon Assembled Focal Cannon Ballistic Gun Enhanced Autogun Ballistic Cannon Advanced Assault Cannon Launcher Rocket Array Special Weapon RU-N14's Throwing Claymores Special Melee Weapon Datajack Build | -11 -10 -10 -9 -9 -9 -8 -8 -8 -8 -7 -7 -7 -7 -6 -6 -6 -6 -6 -6 -5 -5 -5 -5 -5 -4 -4 -4 -4 -4 -4 -4 -3 -3 -2 -1 ------- Run | Jun Mat Min Mat Min Exi Min Mat Gar Mat Fac Low Low Dat Pro Fac Low Low Zio Dee Pro Fac Upp Upp Zhi Pro Fac Was Fac Upp Upp War Pro Res Res Acc Slots Evolved 18 | . . . 2 . . . 2 . . 2 . . . . 2 . . . . . 2 . . . . 2 . . . . . . 2 2 2 Power 2 | . . . . . . . . . . . . . . . . . . . . . 1 . . . . . . . . . . . . 1 . Propulsion 4 | . . . . . . . 2 . . . . . . . . . . . . . . . . . . . . . . . . . . . 2 Utility 10 | . . . 2 . . . . . . 2 . . . . 2 . . . . . 1 . . . . 2 . . . . . . . 1 . Weapon 2 | . . . . . . . . . . . . . . . . . . . . . . . . . . . . . . . . . 2 . . Parts Attached 450 | 6 7 1 37 4 4 5 41 16 20 49 9 1 2 5 43 3 5 3 40 2 6 . . 6 4 22 3 14 1 . 6 8 20 15 42 Power 37 | 1 . . 4 1 . . 2 2 1 2 . . . . 5 . 2 . 4 . . . . . . 2 . . . . 1 1 . 1 8 Engine 17 | 1 . . 4 1 . . 2 1 1 2 . . . . 1 . 1 . 1 . . . . . . . . . . . . . . . 2 Core 6 | . . . . . . . . 1 . . . . . . 4 . 1 . . . . . . . . . . . . . . . . . . Reactor 14 | . . . . . . . . . . . . . . . . . . . 3 . . . . . . 2 . . . . 1 1 . 1 6 Propulsion 83 | 2 2 . 9 . . 2 13 1 10 7 1 . . 4 5 . . . 4 . . . . 1 2 . . 3 . . 2 . 4 2 9 Treads 59 | 2 2 . 9 . . 2 13 1 10 7 1 . . 4 5 . . . 3 . . . . . . . . . . . . . . . . Leg 22 | . . . . . . . . . . . . . . . . . . . . . . . . . 2 . . 3 . . 2 . 4 2 9 Wheel 1 | . . . . . . . . . . . . . . . . . . . 1 . . . . . . . . . . . . . . . . Hover . | . . . . . . . . . . . . . . . . . . . . . . . . . . . . . . . . . . . . Flight 1 | . . . . . . . . . . . . . . . . . . . . . . . . 1 . . . . . . . . . . . Utility 202 | 1 3 . 11 . 2 . 19 2 6 17 3 . . . 17 2 2 1 23 2 6 . . 5 2 19 3 9 1 . 3 3 13 10 17 Device 77 | . . . 4 . . . 6 . . 5 2 . . . 5 2 2 1 10 2 2 . . 1 . 11 2 3 . . 1 1 6 3 8 Storage 17 | 1 1 . . . 2 . 2 . 1 . . . . . 2 . . . 3 . 1 . . 1 . . . . . . . . . 1 2 Processor 10 | . . . . . . . . . . 1 . . . . 1 . . . 1 . . . . . 1 . . 1 . . 1 . 2 1 1 Hackware 15 | . . . . . . . 2 . 1 . . . . . 3 . . . . . 1 . . . . 3 . . . . . 1 . 1 3 Protection 83 | . 2 . 7 . . . 9 2 4 11 1 . . . 6 . . . 9 . 2 . . 3 1 5 1 5 1 . 1 1 5 4 3 Artifact . | . . . . . . . . . . . . . . . . . . . . . . . . . . . . . . . . . . . . Weapon 128 | 2 2 1 13 3 2 3 7 11 3 23 5 1 2 1 16 1 1 2 9 . . . . . . 1 . 2 . . . 4 3 2 8 Energy Gun 1 | . . . . . . . . 1 . . . . . . . . . . . . . . . . . . . . . . . . . . . Energy Cannon 18 | . . . . . . . . . . 7 2 . . . 5 . . . 4 . . . . . . . . . . . . . . . . Ballistic Gun 47 | 2 2 . 6 1 1 1 4 6 3 9 1 1 1 . 5 . . . . . . . . . . . . . . . . . . . 4 Ballistic Cannon 15 | . . . 4 1 1 1 1 . . 1 1 . 1 . 3 . 1 . . . . . . . . . . . . . . . . . . Launcher 39 | . . 1 3 1 . 1 2 4 . 6 1 . . 1 3 1 . . 3 . . . . . . 1 . 1 . . . 4 2 1 3 Special Weapon 7 | . . . . . . . . . . . . . . . . . . 2 1 . . . . . . . . 1 . . . . 1 1 1 Impact Weapon . | . . . . . . . . . . . . . . . . . . . . . . . . . . . . . . . . . . . . Slashing Weapon . | . . . . . . . . . . . . . . . . . . . . . . . . . . . . . . . . . . . . Piercing Weapon . | . . . . . . . . . . . . . . . . . . . . . . . . . . . . . . . . . . . . Special Melee Weapon 1 | . . . . . . . . . . . . . . . . . . . 1 . . . . . . . . . . . . . . . . Unidentified Prototypes 26 | . . . 2 . . . 2 . . 1 . . 1 . 1 . . 1 6 . . . . 4 . . . . . . 4 2 . . 2 Parts Lost 129 | . 1 . 9 . . 3 8 4 3 6 . . . . 6 . . . 17 . 2 2 . . 4 2 . 5 . . 1 1 11 4 40 Power 14 | . . . . . . . 1 1 . 1 . . . . . . . . 1 . . . . . . 1 . . . . . . . . 9 Propulsion 35 | . . . 2 . . 1 2 1 3 3 . . . . 3 . . . 5 . 1 1 . . . 1 . . . . . . 4 . 8 Utility 52 | . 1 . 4 . . . 4 2 . 1 . . . . 1 . . . 9 . . . . . 3 . . 4 . . 1 1 3 3 15 Weapon 28 | . . . 3 . . 2 1 . . 1 . . . . 2 . . . 2 . 1 1 . . 1 . . 1 . . . . 4 1 8 Highest Loss Streak 12 | . 1 . 3 . . 3 3 2 1 1 . . . . 4 . . . 12 . 2 2 . . 4 2 . 4 . . 1 1 3 3 9 To Critical Strikes 2 | . . . 1 . . . . . 1 . . . . . . . . . . . . . . . . . . . . . . . . . . Average Slot Usage (%) 89 | . 93 100 92 100 78 99 98 99 99 97 98 100 86 100 96 100 100 88 85 80 75 70 70 62 79 88 77 80 83 84 79 86 83 83 82 Engine 3 | . 14 14 11 11 11 11 8 3 8 6 7 7 7 7 2 . . . . . . . . . . . . . . . . . . . . Reactor 2 | . . . . . . . . . . . . . . . . . . . 4 6 5 5 5 5 5 5 5 5 5 5 5 5 4 8 6 Treads 16 | . 27 28 21 22 22 21 35 36 35 28 28 30 30 30 24 26 26 26 19 13 7 . . . . . . . . . . . . . . Leg 7 | . . . . . . . . . . . . . . . . . . . 2 13 11 11 11 8 14 20 13 17 21 21 20 21 18 16 23 Device 11 | . . . 13 11 11 11 2 . . 2 11 15 15 15 13 20 20 20 15 13 12 11 11 14 18 22 23 22 15 15 18 20 14 12 11 Storage 9 | . 15 14 11 11 11 11 9 9 9 7 7 7 7 7 6 6 6 6 10 12 11 11 11 11 11 10 10 10 10 10 10 10 9 8 8 Processor 2 | . . . . . . . . . . 6 7 7 7 7 4 . . . . . . . . . 1 . . . 5 5 8 10 11 7 1 Hackware 7 | . . . . . . . 6 9 17 12 7 7 7 7 18 20 20 20 7 . 4 5 5 5 5 7 . . . . . . . 3 9 Protection 10 | . 6 14 12 22 22 22 16 17 9 14 10 7 7 7 7 6 6 5 6 6 7 11 11 10 8 9 10 13 14 15 8 7 6 9 8 Energy Cannon 4 | . . . . . . . . . . 2 10 . . . 2 . . . 6 6 8 11 11 2 11 9 10 9 9 10 5 9 13 13 6 Ballistic Gun 6 | . 27 17 11 11 . 10 17 17 17 10 . 6 . 7 4 6 6 . . . . . . . . . . . . . . . . . 2 Ballistic Cannon 1 | . . . 10 3 . 10 . . . . 1 7 . 3 4 1 5 . . . . . . . . . . . . . . . . . . Naked Turns . | . . . . . . . . . . . . . . . . . . . . . . . . . . . . . . . . . . . . Heaviest Build 227 | 13 34 33 41 43 96 63 63 64 61 79 78 73 69 70 123 114 114 124 141 141 179 179 179 169 169 185 185 193 178 178 172 165 196 222 227 Greatest Support 180 | 40 40 40 44 44 44 44 88 86 86 86 86 86 86 96 107 104 104 104 104 60 80 60 60 60 110 130 85 125 105 105 120 120 120 120 180 Greatest Overweight (x) 22 | . . . 1 . 2 1 1 . . 1 1 . . . 1 1 1 1 12 2 2 2 2 2 2 2 22 2 1 1 1 1 3 1 2 Average Overweight (x) . | . . . . . 1 1 . . . . . . . . . 1 1 . 1 2 1 2 2 2 1 1 3 1 1 1 1 . 1 1 . Largest Inventory Capacity 25 | 8 15 15 15 15 25 20 20 20 20 20 20 20 20 20 25 25 25 25 25 25 25 25 25 25 25 25 25 25 25 25 25 25 25 25 25 Average Capacity 22 | 6 14 15 15 15 21 20 20 20 20 20 20 20 20 20 23 25 25 25 25 25 24 25 25 25 25 25 25 25 25 25 25 25 25 25 25 Most Carried 25 | 1 10 9 15 15 20 19 20 20 20 20 20 20 20 20 25 23 25 25 25 23 25 19 20 23 24 25 25 25 21 21 25 25 25 25 21 Average Carried 19 | . 6 9 12 14 18 16 19 19 19 19 19 20 20 20 21 23 23 24 22 22 20 18 19 21 22 23 25 24 20 20 23 24 23 24 14 Final Capacity 25 | 8 15 15 15 15 20 20 20 20 20 20 20 20 20 20 25 25 25 25 25 25 25 25 25 25 25 25 25 25 25 25 25 25 25 25 25 Final Carried 25 | 1 9 9 15 15 19 17 18 19 20 19 20 20 20 20 23 23 24 24 23 23 19 19 20 22 24 25 25 21 20 21 25 24 25 20 8 Class Distribution -------------------- 31% | Golem 28% | Mutant 26% | Hacker-Mutant 6% | Scavenger-Mutant 4% | Hacker-Golem Dominant Class ---------------- Mutant | -10/Materials Mutant | -10/Mines Mutant | -9/Materials Mutant | -9/Mines Mutant | -9/Exiles Mutant | -8/Mines Mutant | -8/Materials Mutant | -8/Garrison Hacker-Mutant | -8/Materials Hacker-Mutant | -7/Factory Mutant | -7/Lower Caves Mutant | -7/Lower Caves Mutant | -7/Data Miner Mutant | -6/Proximity Caves Hacker-Mutant | -6/Factory Hacker-Mutant | -6/Lower Caves Hacker-Mutant | -6/Lower Caves Hacker-Mutant | -6/Zion Scavenger-Mutant | -6/Deep Caves Golem | -5/Proximity Caves Golem | -5/Factory Golem | -5/Upper Caves Golem | -5/Upper Caves Golem | -5/Zhirov Golem | -4/Proximity Caves Hacker-Golem | -4/Factory Golem | -4/Waste Golem | -4/Factory Golem | -4/Upper Caves Golem | -4/Upper Caves Golem | -4/Warlord Golem | -3/Proximity Caves Golem | -3/Research Golem | -2/Research Golem | -1/Access Resources | -11 -10 -10 -9 -9 -9 -8 -8 -8 -8 -7 -7 -7 -7 -6 -6 -6 -6 -6 -6 -5 -5 -5 -5 -5 -4 -4 -4 -4 -4 -4 -4 -3 -3 -2 -1 ----------- Run | Jun Mat Min Mat Min Exi Min Mat Gar Mat Fac Low Low Dat Pro Fac Low Low Zio Dee Pro Fac Upp Upp Zhi Pro Fac Was Fac Upp Upp War Pro Res Res Acc Matter Collected 18254 | 210 603 22 1762 192 . 56 1726 1006 1041 1969 395 142 . 224 1260 115 443 9 774 262 136 15 33 . 557 398 62 243 215 35 74 80 639 118 3438 Remotely 62 | . . . . . . . . . . 62 . . . . . . . . . . . . . . . . . . . . . . . . . Salvage Created 35166 | . 1075 40 1502 190 . 54 1664 1098 741 2721 110 34 . 222 1105 85 210 . 1675 555 2376 649 438 . 768 2298 316 1224 116 200 493 1041 3561 1507 7098 Parts 1659 | . 75 5 119 16 . 4 94 41 45 135 3 4 . 3 86 3 15 . 25 18 73 31 17 . 25 128 3 48 10 8 6 47 182 67 323 Haulers Intercepted 16 | . 1 . 5 . . . 6 . . 1 . . . . . . . . . . . . . . . . . . . . . . . . 3 Recyclers Shooed 17 | . 1 . 1 . . . 2 . . 2 . . . . 1 . . . . . 1 . . . . . . . . . . . 1 . 8 Parts Field Recycled . | . . . . . . . . . . . . . . . . . . . . . . . . . . . . . . . . . . . . Retrieved Matter . | . . . . . . . . . . . . . . . . . . . . . . . . . . . . . . . . . . . . Parts Self-Destructed 191 | . . . . . . . . . . . 4 4 . 5 . . 14 . . 25 . 31 17 . 23 . . . 10 7 . 51 . . . Prevented . | . . . . . . . . . . . . . . . . . . . . . . . . . . . . . . . . . . . . Kills | -11 -10 -10 -9 -9 -9 -8 -8 -8 -8 -7 -7 -7 -7 -6 -6 -6 -6 -6 -6 -5 -5 -5 -5 -5 -4 -4 -4 -4 -4 -4 -4 -3 -3 -2 -1 ------- Run | Jun Mat Min Mat Min Exi Min Mat Gar Mat Fac Low Low Dat Pro Fac Low Low Zio Dee Pro Fac Upp Upp Zhi Pro Fac Was Fac Upp Upp War Pro Res Res Acc Combat Hostiles Destroyed 656 | . 19 3 38 8 . 2 28 27 14 53 4 1 . 6 26 4 5 . 66 19 31 13 7 . 10 37 . 24 2 2 6 15 61 23 102 Guns 136 | . 19 3 9 2 . . 20 18 14 24 . . . 2 5 . 1 . . . . . . . . . . . . . . . . . 19 Cannons 258 | . . . 20 1 . . . . . 6 1 1 . . 15 . 1 . 10 3 30 13 7 . 10 33 . 3 2 2 6 15 38 19 22 AOE 250 | . . . 9 5 . 2 8 9 . 22 3 . . 4 5 4 3 . 46 16 1 . . . . 4 . 21 . . . . 23 4 61 Classes Destroyed 28 | . 7 . 6 . . . 2 1 1 . . . . . . . . . 4 1 1 . . . 1 . . 2 . . 2 . . . . Worker 51 | . 3 . 3 1 . . . . 1 8 . . . . 3 . . . . . . . . . . 4 . 2 . . . . 4 . 22 Builder 52 | . . . 4 1 . . 1 . . 5 . . . . 5 . . . . . 2 . . . . 1 . 2 . . . . 3 . 28 Tunneler 5 | . . . 1 1 . . 1 . . . . . . . 1 . . . . . . . . . . . . . . . . . . 1 . Hauler 16 | . 1 . 5 . . . 6 . . 1 . . . . . . . . . . . . . . . . . . . . . . . . 3 Recycler 31 | . 3 . 1 . . . 1 . . 6 . . . . . . . . . . 2 . . . . 1 . 2 . . . . 3 . 12 Carrier 2 | . . . . . . . . . . . . . . . . . . . . . 1 . . . . . . . . . . . . 1 . Mechanic 5 | . . . . . . . . . . . . . . . . . . . . . . . . . . . . . . . . . 1 . 4 Operator 9 | . 4 . 2 . . . 1 . . . . . . . 1 . . . . . . . . . . . . . . . . . 1 . . Drone 2 | . . . . . . . . . . . . . . . . . . . . 2 . . . . . . . . . . . . . . . Watcher 26 | . 3 . 4 . . . 3 . 3 3 . . . . 1 . . . . . . . . . . 3 . 2 . . . . 2 . 2 Swarmer 75 | . 6 3 9 4 . . 3 2 3 6 . . . 2 4 . . . . 4 . 4 . . . 6 . . . . . . 11 8 . Grunt 218 | . 13 . 14 2 . 1 16 18 2 26 4 . . 3 5 . 3 . . 6 15 5 6 . 5 8 . 5 . . 3 3 18 . 37 Brawler 28 | . . . 3 1 . . . . . 3 . . . 1 . . 1 . . 3 3 . 1 . . . . 1 . . . . 3 . 8 Duelist 21 | . . . 2 1 . 1 1 . . 1 . . . . . . . . . 3 . . . . . 1 . 2 . . . . 2 . 7 Protector 18 | . . . 1 . . . . . . 2 . . . . . . . . . 1 . . . . . . . 2 . . . 4 1 . 7 Sentry 60 | . . . 10 . . . 5 6 8 2 . . . . 4 . . . . 1 3 1 . . . 4 . 1 . 1 . 2 6 5 1 Demolisher 4 | . . . . . . . . . . . . . . . . . . . . . . . . . . . . . . . . 4 . . . Specialist 5 | . . . . . . . 2 . . 2 . . . . . . . . . . . . . . . . . 1 . . . . . . . Hunter 46 | . . . . . . . . . 1 5 . . . . 4 . 1 . . . 1 1 . . 2 . . 7 . . . 2 2 3 17 Programmer 95 | . . . . . . . . 1 . 6 . 1 . . 9 . . . . . 7 2 . . 2 18 . 5 2 . . . 17 1 24 Heavy 1 | . . . . . . . 1 . . . . . . . . . . . . . . . . . . . . . . . . . . . . Behemoth 3 | . . . . . . . . . . . . . . . . . . . . . . . . . 1 . . . . 1 . . 1 . . Striker 5 | . . . . . . . . . . . . . . . . . . . . . . . . . . . . . . . 1 . . 3 1 Executioner 5 | . . . . . . . . . . . . . . . . . . . . . . . . . . . . . . . 2 . . 3 . Z-Technician 3 | . . . . . . . . . . . . . . . . . . . 3 . . . . . . . . . . . . . . . . Z-Light 3 | . . . . . . . . . . . . . . . . . . . 3 . . . . . . . . . . . . . . . . Assembler 2 | . . . . . . . . . . . . . . . . . . . 2 . . . . . . . . . . . . . . . . Assembled 50 | . . . . . . . . . . . . . . . . . . . 50 . . . . . . . . . . . . . . . . Golem 15 | . . . . . . . . . . . . . . . . . . . 13 . 2 . . . . . . . . . . . . . . Surgeon 2 | . . . . . . . . . . . . . . . . . . . . . . . . . . . . 1 . . 1 . . . . Savage 2 | . . . . . . . . . . . . . . . . 1 . . . . . . . . . . . 1 . . . . . . . Butcher 3 | . . . . . . . . . . . . . . . . 3 . . . . . . . . . . . . . . . . . . . Martyr 1 | . . . . . . . . . . . . . . . . . . . . . . . . . . . . 1 . . . . . . . Best Kill Streak 37 | . 6 3 12 6 . 2 10 9 3 8 4 1 . 2 6 4 4 . 37 7 6 6 3 . 3 14 . 19 2 1 6 3 14 4 15 Combat Bots Only 36 | . 4 3 10 4 . 2 9 9 3 6 4 1 . 2 4 4 4 . 36 7 5 6 3 . 3 8 . 14 2 1 6 3 9 4 10 Max Kills in Single Turn 16 | . 1 2 3 4 . 1 3 3 2 7 1 1 . 2 3 1 1 . 16 4 2 1 1 . 1 6 . 5 1 1 2 1 4 2 4 Gunslinging 1 | . . . . . . . . . 1 . . . . . . . . . . . . . . . . . . . . . . . . . . Exploded 16 | . . . 3 3 . 1 2 3 . 3 1 . . 2 3 1 1 . 16 4 1 . . . . 3 . 4 . . . . 3 2 3 Melee . | . . . . . . . . . . . . . . . . . . . . . . . . . . . . . . . . . . . . Uniques/NPCs Destroyed 1 | . . . . . . . . . . . . . . . . . . . 1 . . . . . . . . . . . . . . . . Z-Imprinter (-6/Deep Caves) Combat | -11 -10 -10 -9 -9 -9 -8 -8 -8 -8 -7 -7 -7 -7 -6 -6 -6 -6 -6 -6 -5 -5 -5 -5 -5 -4 -4 -4 -4 -4 -4 -4 -3 -3 -2 -1 -------- Run | Jun Mat Min Mat Min Exi Min Mat Gar Mat Fac Low Low Dat Pro Fac Low Low Zio Dee Pro Fac Upp Upp Zhi Pro Fac Was Fac Upp Upp War Pro Res Res Acc Damage Taken 35777 | . 674 12 1928 164 . 288 2190 1098 817 3087 100 150 . 331 2001 51 182 . 2060 593 745 707 247 . 1006 1681 . 1776 86 160 451 1189 3523 1158 7322 Core 3005 | . 73 . 128 . . 60 227 104 88 215 18 53 . . 194 . 15 . 277 60 33 25 25 . 58 120 . 101 . 20 45 145 231 76 614 Absorbed by Shields 3791 | . . . 172 . . . 118 24 . . . . . . 406 19 67 . 105 . 485 112 58 . 926 513 . 47 . . . . . 438 301 Redirected to Shielding 654 | . . . 9 . . 13 100 . . . . . . . . . . . 275 . . . . . 104 13 . . . 12 . 5 . . 123 Regen/Repaired (Parts) 1892 | . 141 . 28 . . . 355 . 416 497 . . . . . . . . . . 264 . . . . 45 134 . . . 12 . . . . Core Remaining (%) 65 | 100 . 70 . . . 53 . . 23 . . . . 59 . . . . . 35 . . . . 85 . . . . . . 62 82 94 61 Volleys Fired 1807 | . 83 2 137 10 . 13 151 101 79 168 24 2 . 15 83 9 11 . 88 14 92 26 15 . 39 83 5 29 5 5 16 75 118 44 265 Largest 4 | . 2 2 2 2 . 2 2 2 2 2 1 2 . 1 2 2 2 . 2 1 2 2 2 . 2 2 2 2 2 2 2 2 4 4 4 Hottest 126 | . 40 40 62 62 . 56 62 64 50 126 63 73 . 39 126 73 73 . 126 45 50 50 50 . 50 70 50 70 50 50 50 50 121 75 121 Shots Fired 3355 | . 166 4 269 20 . 15 300 181 158 321 24 4 . 15 163 11 18 . 120 17 147 40 27 . 75 162 12 44 10 13 30 148 275 120 446 Gun 1452 | . 166 4 131 8 . 2 290 160 158 261 . 2 . 9 67 1 7 . . . . . . . . . . . . . . . . . 186 Cannon 1633 | . . . 124 4 . 7 1 . . 41 20 2 . . 92 1 6 . 105 9 147 40 27 . 75 160 12 29 10 13 30 148 251 108 171 Launcher 240 | . . . 14 8 . 6 9 21 . 19 4 . . 6 4 9 5 . 15 8 . . . . . 2 . 12 . . . . 17 2 79 Special 30 | . . . . . . . . . . . . . . . . . . . . . . . . . . . . 3 . . . . 7 10 10 Kinetic 1682 | . 166 4 255 12 . 9 291 160 158 265 16 4 . 9 132 2 13 . . . . . . . . . . . . . . . . . 186 Thermal 1230 | . . . . . . . . . . . . . . . . . . . . 9 147 40 27 . 75 160 12 29 10 13 30 148 251 108 171 Explosive 270 | . . . 14 8 . 6 9 21 . 19 4 . . 6 4 9 5 . 15 8 . . . . . 2 . 15 . . . . 24 12 89 Electromagnetic 173 | . . . . . . . . . . 37 4 . . . 27 . . . 105 . . . . . . . . . . . . . . . . Robot Hit Streak 36 | . 14 3 18 8 . 5 16 15 10 18 4 2 . 5 14 4 5 . 20 6 23 30 13 . 15 23 10 17 3 7 17 27 36 10 20 Robot Miss Streak 9 | . 5 1 9 2 . 3 5 4 3 4 2 . . 2 3 2 2 . 5 2 5 1 1 . 2 2 1 4 1 1 1 3 3 4 6 Penetration Max . | . . . . . . . . . . . . . . . . . . . . . . . . . . . . . . . . . . . . Secondary Targets 8 | . 1 . . . . . 3 1 1 2 . . . . . . . . . . . . . . . . . . . . . . . . . Max Gunslinging Chain 1 | . 1 . . . . . 1 1 1 1 . . . . . . . . . . . . . . . . . . . . . . . . . Shots Hit Robots 2184 | . 95 3 177 10 . 9 203 103 103 227 4 2 . 7 114 6 8 . 89 11 108 29 18 . 59 101 10 27 3 8 22 94 178 75 281 Core Hits 1841 | . 47 3 82 15 . 4 85 52 34 130 9 1 . 14 63 6 14 . 241 70 53 16 9 . 18 78 2 170 2 5 9 39 143 45 382 Critical Kills 1 | . . . . . . . . 1 . . . . . . . . . . . . . . . . . . . . . . . . . . . Critical Parts Destroyed 4 | . . . . . . . 2 . 1 1 . . . . . . . . . . . . . . . . . . . . . . . . . Critical Strikes 22 | . . . 2 . . 1 2 1 1 2 . . . . 5 . . . 3 . . . . . . . . 1 . . . . 1 1 2 Destroy 5 | . . . . . . . 2 1 1 1 . . . . . . . . . . . . . . . . . . . . . . . . . Blast 7 | . . . 2 . . 1 . . . . . . . . 4 . . . . . . . . . . . . . . . . . . . . Corrupt 5 | . . . . . . . . . . 1 . . . . 1 . . . 3 . . . . . . . . . . . . . . . . Sever 5 | . . . . . . . . . . . . . . . . . . . . . . . . . . . . 1 . . . . 1 1 2 Melee Attacks 1 | . . . . . . . . . . . . . . . . . . . 1 . . . . . . . . . . . . . . . . Impact . | . . . . . . . . . . . . . . . . . . . . . . . . . . . . . . . . . . . . Slashing . | . . . . . . . . . . . . . . . . . . . . . . . . . . . . . . . . . . . . Piercing . | . . . . . . . . . . . . . . . . . . . . . . . . . . . . . . . . . . . . Sneak Attacks 1 | . . . . . . . . . . . . . . . . . . . 1 . . . . . . . . . . . . . . . . Combat Hostiles . | . . . . . . . . . . . . . . . . . . . . . . . . . . . . . . . . . . . . Follow-up Attacks . | . . . . . . . . . . . . . . . . . . . . . . . . . . . . . . . . . . . . Damage Inflicted 116463 | . 1348 57 4209 675 . 375 3983 2806 1854 8521 566 95 . 698 3547 550 551 . 6344 2540 5583 1415 935 . 2882 6027 481 6345 203 415 1180 3984 13906 4732 29656 Guns 19602 | . 1244 57 1328 76 . 17 3234 1778 1832 3408 . 25 . 91 919 19 60 . . . . . . . . . . . . . . . . . 5514 Cannons 45250 | . . . 1630 66 . 109 . . . 813 30 38 . . 1968 24 21 . 1620 249 5391 1415 935 . 2882 4883 481 803 203 415 1180 3984 7837 3285 4988 Explosions 50131 | . 91 . 1216 524 . 244 724 1028 . 4235 497 . . 607 610 507 470 . 4675 2291 160 . . . . 1000 . 5423 . . . . 5799 1242 18788 Melee . | . . . . . . . . . . . . . . . . . . . . . . . . . . . . . . . . . . . . Ramming 679 | . 13 . 35 9 . 5 25 . 22 65 39 32 . . 50 . . . 49 . 32 . . . . 144 . 15 . . . . 88 . 56 Kinetic 22941 | . 1244 57 2958 142 . 126 3234 1778 1832 3491 . 63 . 91 2287 43 81 . . . . . . . . . . . . . . . . . 5514 Thermal 39622 | . . . . . . . . . . 513 . . . . . . . . 88 249 5391 1415 935 . 2882 4973 481 803 203 415 1180 3984 7837 3285 4988 Explosive 49440 | . 91 . 1216 524 . 244 724 1028 . 3722 497 . . 607 610 507 470 . 4587 2291 160 . . . . 910 . 5423 . . . . 5799 1242 18788 Electromagnetic 2980 | . . . . . . . . . . 730 30 . . . 600 . . . 1620 . . . . . . . . . . . . . . . . Impact . | . . . . . . . . . . . . . . . . . . . . . . . . . . . . . . . . . . . . Slashing 801 | . . . . . . . . . . . . . . . . . . . . . . . . . . . . 104 . . . . 182 205 310 Piercing . | . . . . . . . . . . . . . . . . . . . . . . . . . . . . . . . . . . . . Highest Corruption 21 | . . . 10 10 10 10 . . . 12 12 12 12 12 6 6 6 6 20 20 6 7 7 7 7 10 10 11 11 11 11 . 11 . 21 Average Corruption 8 | . . . 5 10 10 10 . . . 7 12 12 12 12 4 6 6 6 15 20 3 6 7 7 7 4 10 10 11 11 11 . 5 . 11 Corruption Purged 1 | . . . . . . . . . . . . . . . . . . . . . . . . . . . . . . . . . 1 . . Corruption Blocked 29 | . . . . . . . . . . 5 . . . . . . . . . . . . . . . . . . . . . . . 24 . Effects 1143 | . . . 66 39 24 28 . . . 118 59 23 6 12 93 26 21 1 99 40 32 22 22 27 32 83 22 50 22 24 2 . 44 . 106 Message Errors 279 | . . . 17 9 7 8 . . . 21 11 9 2 4 24 3 3 1 25 7 4 6 4 8 8 20 3 13 8 8 1 . 13 . 32 Matter Fused 244 | . . . 8 4 5 7 . . . 28 19 3 . . 15 9 6 . 22 9 9 3 6 9 9 21 5 8 2 5 1 . 11 . 20 Heat Flow Errors 138 | . . . 12 8 3 2 . . . 18 8 5 . 1 14 5 1 . 8 7 4 4 2 2 1 8 3 4 3 2 . . 4 . 9 Energy Discharges 143 | . . . 12 7 1 6 . . . 18 6 . 2 2 13 5 5 . 5 6 4 . 8 2 4 13 3 3 4 1 . . 4 . 9 Parts Rejected 11 | . . . 2 . . . . . . 1 1 . . . . . . . 1 . 1 . . . . . . 1 . . . . 2 . 2 Parts Fused 12 | . . . . . . . . . . 1 2 . . . . . . . 2 . . 2 . . . 3 1 . . . . . . . 1 Data Loss (minor) 149 | . . . 9 6 6 2 . . . 18 4 1 2 3 9 2 2 . 21 7 4 6 2 4 4 10 3 8 2 2 . . 2 . 10 Data Loss (major) 52 | . . . 1 2 2 2 . . . 1 6 3 . 1 6 . . . 8 1 . . . 2 . 4 1 3 2 2 . . 4 . 1 Misfires 45 | . . . 2 2 . . . . . 4 1 1 . . 5 1 2 . 3 3 2 1 . . 2 3 2 3 . 3 . . 1 . 4 Alerts 28 | . . . 1 1 . 1 . . . 2 . . . . 6 1 1 . 4 . 1 . . . 1 1 1 3 1 1 . . 1 . 1 Misdirections 9 | . . . . . . . . . . 1 . . . 1 . . . . . . . . . . . . . 2 . . . . . . 5 Weapon Failures 33 | . . . 2 . . . . . . 5 1 1 . . 1 . 1 . . . 3 . . . 3 . . 2 . . . . 2 . 12 Overload Shots . | . . . . . . . . . . . . . . . . . . . . . . . . . . . . . . . . . . . . Overflow Damage 2977 | . 5 . 75 2 . 8 . . . 283 . 22 . . 60 . . . 141 11 167 9 . . 87 184 . 44 7 . 38 192 681 85 876 Projectiles 1590 | . . . 41 . . . . . . 48 . . . . 40 . . . 9 . 150 9 . . 87 157 . 28 7 . 38 192 508 44 232 Explosions 1309 | . 5 . 34 2 . 8 . . . 235 . . . . 20 . . . 131 11 . . . . . 1 . 16 . . . . 161 41 644 Melee 78 | . . . . . . . . . . . . 22 . . . . . . 1 . 17 . . . . 26 . . . . . . 12 . . Knockbacks 24 | . . . 9 . . . . . . 3 . . . . 7 . . . . . 1 . . . . 1 . . . . . . 2 . 1 Impact 8 | . . . . . . . . . . 2 . . . . 1 . . . . . 1 . . . . 1 . . . . . . 2 . 1 Kinetic 16 | . . . 9 . . . . . . 1 . . . . 6 . . . . . . . . . . . . . . . . . . . . Secondary . | . . . . . . . . . . . . . . . . . . . . . . . . . . . . . . . . . . . . Self-Inflicted Damage 3050 | . 217 . 139 64 . 117 105 199 . 93 50 . . 57 23 70 . . 273 272 62 . . . . 279 . 514 . . . . 124 73 319 Shots 100 | . 2 . 6 2 . 3 4 8 . 3 1 . . 2 1 2 . . 10 13 1 . . . . 11 . 18 . . . . 3 2 8 Rammed 45 | . 3 . 10 1 . 1 5 . 2 9 2 3 . . 4 . . . 5 . . . . . . . . . . . . . . . . Targets Rammed 68 | . 3 . 12 2 . 1 5 . 2 10 3 3 . . 6 . . . 8 . 1 . . . . 7 . 1 . . . . 3 . 1 Kicked 13 | . . . . . . . . . . . . . . . . . . . . . 1 . . . . 7 . 1 . . . . 3 . 1 Crushed 10 | . . . 2 1 . . . . . 1 1 . . . 2 . . . 3 . . . . . . . . . . . . . . . . Highest Temperature 316 | . 8 . 276 273 131 210 197 110 161 316 245 234 . 247 240 195 123 . 235 255 235 265 220 157 98 246 197 228 236 176 . 2 197 . 251 Average Temperature 67 | . 3 . 75 91 63 64 38 30 33 79 93 96 . 148 86 75 71 . 49 76 92 104 71 71 58 85 87 96 100 92 . 2 88 . 77 Received Heat Transfer 6021 | . 183 . 416 72 . 81 747 438 306 675 27 36 . 27 145 . 36 . 335 45 157 175 163 . 94 194 . 145 . 18 147 148 322 32 857 Effects 3 | . . . . . . . . . . 2 . . . . . . . . . . . 1 . . . . . . . . . . . . . Energy Bleed 1 | . . . . . . . . . . 1 . . . . . . . . . . . . . . . . . . . . . . . . . Interference 2 | . . . . . . . . . . 1 . . . . . . . . . . . 1 . . . . . . . . . . . . . Siege Activations . | . . . . . . . . . . . . . . . . . . . . . . . . . . . . . . . . . . . . Robots Corrupted 13 | . . . . . . . . . . 2 . . . . 1 . . . 10 . . . . . . . . . . . . . . . . Combat Hostiles 12 | . . . . . . . . . . 1 . . . . 1 . . . 10 . . . . . . . . . . . . . . . . Parts Fried 15 | . . . . . . . . . . 7 . . . . 5 . . . 3 . . . . . . . . . . . . . . . . Impact Corruptions 6 | . . . . . . . . . . . . 1 . . . . . . 1 . 1 . . . . 2 . . . . . . 1 . . Robots Melted . | . . . . . . . . . . . . . . . . . . . . . . . . . . . . . . . . . . . . Combat Hostiles . | . . . . . . . . . . . . . . . . . . . . . . . . . . . . . . . . . . . . Parts Melted 31 | . . . . . . . . . . 1 . . . . . . . . . . 3 4 . . 2 2 . . . . 1 1 5 1 11 Heat Transferred 20247 | . . . . . . . . . . 400 . . . . . . . . 50 150 2775 725 475 . 1500 2637 249 399 75 225 625 1700 4062 1750 2450 Parts Sabotaged 1 | . . . . . . . . . . . . . . . . . . . . . . . . . . . . . . . . . . . 1 Parts Stolen . | . . . . . . . . . . . . . . . . . . . . . . . . . . . . . . . . . . . . Parts Stripped . | . . . . . . . . . . . . . . . . . . . . . . . . . . . . . . . . . . . . Power Chain Reactions 3 | . . . . . . . . . . 2 . . . . . . . . 1 . . . . . . . . . . . . . . . . Missiles Intercepted . | . . . . . . . . . . . . . . . . . . . . . . . . . . . . . . . . . . . . Alert | -11 -10 -10 -9 -9 -9 -8 -8 -8 -8 -7 -7 -7 -7 -6 -6 -6 -6 -6 -6 -5 -5 -5 -5 -5 -4 -4 -4 -4 -4 -4 -4 -3 -3 -2 -1 ------- Run | Jun Mat Min Mat Min Exi Min Mat Gar Mat Fac Low Low Dat Pro Fac Low Low Zio Dee Pro Fac Upp Upp Zhi Pro Fac Was Fac Upp Upp War Pro Res Res Acc Peak Influence 3739 | . 303 131 981 539 . 84 398 1088 565 1532 . . . . 702 . . . . . 745 . . . . 1055 371 1868 . . . . 1590 1397 3739 Initial 892 | . . 61 50 368 . . . 169 530 25 . . . . 25 . . . . . 93 . . . . 18 369 119 . . . . . 892 837 Average 485 | . 157 130 497 402 . 34 200 718 113 444 . . . . 230 . . . . . 282 . . . . 219 308 670 . . . . 658 885 1967 Maximum Alert Level 5 | . 1 . 3 2 . . 1 3 2 4 . . . . 3 . . . . . 3 . . . . 3 1 5 . . . . 4 4 5 Low Security (%) 41 | 100 51 100 19 . . 100 39 4 82 41 . . . . 57 . . . . . 56 . . . . 73 30 20 . . . . 36 . . Level 1 18 | . 48 . 25 58 . . 60 12 13 15 . . . . 16 . . . . . 12 . . . . 2 69 3 . . . . 2 . . Level 2 15 | . . . 29 41 . . . 21 4 22 . . . . 24 . . . . . 27 . . . . 10 . 36 . . . . 19 8 . Level 3 14 | . . . 24 . . . . 61 . 11 . . . . 1 . . . . . 3 . . . . 13 . 25 . . . . 9 84 15 Level 4 5 | . . . . . . . . . . 8 . . . . . . . . . . . . . . . . . 7 . . . . 30 6 32 Level 5 3 | . . . . . . . . . . . . . . . . . . . . . . . . . . . . 6 . . . . . . 45 High Security . | . . . . . . . . . . . . . . . . . . . . . . . . . . . . . . . . . . . 7 Max Security . | . . . . . . . . . . . . . . . . . . . . . . . . . . . . . . . . . . . . Squads Dispatched 140 | . 5 . 5 1 . . 3 . 3 18 . 1 . . 16 . . . . 1 9 . . . . 14 . 10 . . . . 14 1 39 Investigation 20 | . 1 . 2 . . . . . 3 3 . . . . 4 . . . . . . . . . . 3 . . . . . . 2 . 2 Extermination 42 | . . . . . . . . . . 5 . . . . 8 . . . . . 3 . . . . 10 . 2 . . . . 6 . 8 Reinforcement 33 | . 4 . 1 . . . 3 . . 5 . . . . 3 . . . . . 2 . . . . 1 . 7 . . . . . 1 6 Assault 40 | . . . 2 1 . . . . . 2 . 1 . . 1 . . . . 1 2 . . . . . . 1 . . . . 6 . 23 Garrison 5 | . . . . . . . . . . 3 . . . . . . . . . . 2 . . . . . . . . . . . . . . Intercept . | . . . . . . . . . . . . . . . . . . . . . . . . . . . . . . . . . . . . Searches Triggered . | . . . . . . . . . . . . . . . . . . . . . . . . . . . . . . . . . . . . Data Miner Redirects 19 | . . . . . . . . . . . . . . . 2 . . . . . . . . . . 2 . . . . . . 5 . 10 Construction Impeded 12 | . . . 1 . . . . . . 2 . . . . 1 . . . . . 1 . . . . . . 2 . . . . . . 5 Haulers Reinforced 5 | . . . . . . . . . . . . . . . 1 . . . . . . . . . . . . 2 . . . . . 1 1 Active Scanning Responses . | . . . . . . . . . . . . . . . . . . . . . . . . . . . . . . . . . . . . Cargo Convoy Interrupts 2 | . . . . . . . . . . 1 . . . . . . . . . . . . . . . . . 1 . . . . . . . Stealth | -11 -10 -10 -9 -9 -9 -8 -8 -8 -8 -7 -7 -7 -7 -6 -6 -6 -6 -6 -6 -5 -5 -5 -5 -5 -4 -4 -4 -4 -4 -4 -4 -3 -3 -2 -1 --------- Run | Jun Mat Min Mat Min Exi Min Mat Gar Mat Fac Low Low Dat Pro Fac Low Low Zio Dee Pro Fac Upp Upp Zhi Pro Fac Was Fac Upp Upp War Pro Res Res Acc Distress Signals 59 | . 1 . 2 . . . 6 . 3 2 . . . . 1 . . . . . 1 . . . . 2 . 1 . . 2 24 1 8 5 Communications Jammed 31 | . . . . . . . . . . . . . . . 1 . . . . 2 . . . . . 28 . . . . . . . . . Distress Signals 29 | . . . . . . . . . . . . . . . 1 . . . . . . . . . . 28 . . . . . . . . . Times Spotted 887 | . 31 1 65 6 . 3 54 28 31 73 4 7 . 10 36 4 5 . 64 25 40 13 8 . 12 47 . 59 2 2 15 17 72 27 126 Peak Tracking Total 33 | . 3 1 10 4 . 3 8 5 4 6 4 11 . 3 4 4 4 . 33 8 5 6 5 . 3 8 . 17 1 1 13 4 10 5 12 Tactical Retreats 22 | . . . 2 . . 1 3 1 1 2 . . . . 2 . . . 4 . . . 1 . 1 1 . . . . . 1 1 1 . Traps | -11 -10 -10 -9 -9 -9 -8 -8 -8 -8 -7 -7 -7 -7 -6 -6 -6 -6 -6 -6 -5 -5 -5 -5 -5 -4 -4 -4 -4 -4 -4 -4 -3 -3 -2 -1 ------- Run | Jun Mat Min Mat Min Exi Min Mat Gar Mat Fac Low Low Dat Pro Fac Low Low Zio Dee Pro Fac Upp Upp Zhi Pro Fac Was Fac Upp Upp War Pro Res Res Acc Traps Triggered 20 | . 1 . 2 . . . . 3 2 3 . . . . 4 . . . . . 1 . . . . 1 . . . . . . 3 . . Indirectly . | . . . . . . . . . . . . . . . . . . . . . . . . . . . . . . . . . . . . Trap Hack Attempts . | . . . . . . . . . . . . . . . . . . . . . . . . . . . . . . . . . . . . Triggered . | . . . . . . . . . . . . . . . . . . . . . . . . . . . . . . . . . . . . Disarmed . | . . . . . . . . . . . . . . . . . . . . . . . . . . . . . . . . . . . . Reprogrammed . | . . . . . . . . . . . . . . . . . . . . . . . . . . . . . . . . . . . . Reused . | . . . . . . . . . . . . . . . . . . . . . . . . . . . . . . . . . . . . Traps Extracted . | . . . . . . . . . . . . . . . . . . . . . . . . . . . . . . . . . . . . Installed . | . . . . . . . . . . . . . . . . . . . . . . . . . . . . . . . . . . . . Triggered 16 | . . . . . . . . . . 2 . . . . 4 . . . . . . . . . . . . . . . 10 . . . . Machines | -11 -10 -10 -9 -9 -9 -8 -8 -8 -8 -7 -7 -7 -7 -6 -6 -6 -6 -6 -6 -5 -5 -5 -5 -5 -4 -4 -4 -4 -4 -4 -4 -3 -3 -2 -1 ---------- Run | Jun Mat Min Mat Min Exi Min Mat Gar Mat Fac Low Low Dat Pro Fac Low Low Zio Dee Pro Fac Upp Upp Zhi Pro Fac Was Fac Upp Upp War Pro Res Res Acc Machines Disabled 73 | . 2 . 3 1 . 1 3 1 1 16 . . . . . . . . 4 . 5 . . . . 11 . 9 . . . 2 4 5 5 Max in Single Turn 13 | . 2 . 2 1 . 1 1 1 1 13 . . . . . . . . 1 . 1 . . . . 5 . 4 . . . 1 1 1 1 Garrison Access 3 | . . . . . . . . . . 1 . . . . . . . . . . 1 . . . . . . . . . . . . 1 . Machines Repaired . | . . . . . . . . . . . . . . . . . . . . . . . . . . . . . . . . . . . . Machines Sabotaged . | . . . . . . . . . . . . . . . . . . . . . . . . . . . . . . . . . . . . Overloaded Fab Kills . | . . . . . . . . . . . . . . . . . . . . . . . . . . . . . . . . . . . . Hacking | -11 -10 -10 -9 -9 -9 -8 -8 -8 -8 -7 -7 -7 -7 -6 -6 -6 -6 -6 -6 -5 -5 -5 -5 -5 -4 -4 -4 -4 -4 -4 -4 -3 -3 -2 -1 --------- Run | Jun Mat Min Mat Min Exi Min Mat Gar Mat Fac Low Low Dat Pro Fac Low Low Zio Dee Pro Fac Upp Upp Zhi Pro Fac Was Fac Upp Upp War Pro Res Res Acc Machines Accessed 97 | . 4 . 13 . 1 . 12 4 9 14 . . 4 . 10 . . . . . 3 1 2 5 . 6 . 1 . . . . 3 . 5 Terminals 54 | . 3 . 8 . . . 10 4 6 9 . . . . 5 . . . . . 1 1 . . . 1 . 1 . . . . 2 . 3 Fabricators 10 | . . . . . . . . . . . . . . . 3 . . . . . 1 . . . . 4 . . . . . . 1 . 1 Repair Stations 12 | . 1 . 2 . . . 1 . 2 2 . . . . 2 . . . . . 1 . . . . 1 . . . . . . . . . Recycling Units 2 | . . . 2 . . . . . . . . . . . . . . . . . . . . . . . . . . . . . . . . Scanalyzers 3 | . . . 1 . . . . . 1 1 . . . . . . . . . . . . . . . . . . . . . . . . . Garrison Access 4 | . . . . . . . 1 . . 2 . . . . . . . . . . . . . . . . . . . . . . . . 1 Total Hacks 298 | . 13 . 36 . 1 . 40 9 33 51 . . 29 . 37 . . . . . 5 2 3 10 . 14 . 1 . . . . 4 . 10 Successful 179 | . 10 . 16 . 1 . 23 3 19 30 . . 29 . 17 . . . . . 2 2 3 10 . 12 . . . . . . . . 2 Failed 118 | . 2 . 20 . . . 17 6 14 21 . . . . 20 . . . . . 3 . . . . 2 . 1 . . . . 4 . 8 Catastrophic 13 | . . . 2 . . . 1 . 2 2 . . . . 2 . . . . . 1 . . . . 1 . 1 . . . . 1 . . Database Lockouts 1 | . 1 . . . . . . . . . . . . . . . . . . . . . . . . . . . . . . . . . . Manual 112 | . 5 . 18 . 1 . 24 . 20 13 . . . . 20 . . 5 . . . . . . . 2 . 1 . . 1 . 2 . . Terminals 161 | . 8 . 23 . . . 29 9 22 33 . . . . 21 . . . . . 1 2 . . . 2 . 1 . . . . 3 . 7 Fabricators 24 | . . . . . . . . . . . . . . . 12 . . . . . 2 . . . . 8 . . . . . . 1 . 1 Repair Stations 50 | . 5 . 7 . . . 10 . 7 11 . . . . 4 . . . . . 2 . . . . 4 . . . . . . . . . Recycling Units 4 | . . . 4 . . . . . . . . . . . . . . . . . . . . . . . . . . . . . . . . Scanalyzers 9 | . . . 2 . . . . . 4 3 . . . . . . . . . . . . . . . . . . . . . . . . . Garrison Access 7 | . . . . . . . 1 . . 4 . . . . . . . . . . . . . . . . . . . . . . . . 2 Terminal Hacks 92 | . 4 . 6 . 1 . 8 3 10 10 . . 29 . 5 . . . . . . 2 3 10 . . . . . . . . . . 1 Record 20 | . . . . . . . . . . . . . 11 . . . . . . . . 2 2 5 . . . . . . . . . . . Part Schematic 14 | . . . . . . . . . . 3 . . 10 . . . . . . . . . . 1 . . . . . . . . . . . Robot Schematic 5 | . . . . . . . . . . . . . 5 . . . . . . . . . . . . . . . . . . . . . . Robot Analysis 14 | . 2 . 2 . . . 2 . 1 . . . . . 3 . . . . . . . . 4 . . . . . . . . . . . Prototype ID Bank 4 | . . . . . . . 1 . . . . . 3 . . . . . . . . . . . . . . . . . . . . . . Open Door 3 | . . . . . . . . 1 . . . . . . . . . . . . . . 1 . . . . . . . . . . . 1 Level Access Points 1 | . . . . . . . . . 1 . . . . . . . . . . . . . . . . . . . . . . . . . . Branch Access Points 3 | . . . . . . . . . 1 1 . . . . 1 . . . . . . . . . . . . . . . . . . . . Terminal Index 3 | . . . 1 . . . . . . 1 . . . . 1 . . . . . . . . . . . . . . . . . . . . Fabricator Index 1 | . . . . . . . . . . 1 . . . . . . . . . . . . . . . . . . . . . . . . . Repair Station Index 2 | . . . . . . . 1 . 1 . . . . . . . . . . . . . . . . . . . . . . . . . . Garrison Index 1 | . . . . . . . . . . 1 . . . . . . . . . . . . . . . . . . . . . . . . . Alert Level 4 | . . . 2 . . . 1 . 1 . . . . . . . . . . . . . . . . . . . . . . . . . . Unreport Threat 6 | . . . . . . . 2 . 4 . . . . . . . . . . . . . . . . . . . . . . . . . . Locate Traps 1 | . 1 . . . . . . . . . . . . . . . . . . . . . . . . . . . . . . . . . . Dispatch Records 1 | . . . . . . . . . . 1 . . . . . . . . . . . . . . . . . . . . . . . . . Patrol Status 1 | . . . . . . . . . . 1 . . . . . . . . . . . . . . . . . . . . . . . . . Recall Investigation 1 | . . . . . . . . . 1 . . . . . . . . . . . . . . . . . . . . . . . . . . Hauler Manifests 4 | . 1 . 1 . . . 1 . . 1 . . . . . . . . . . . . . . . . . . . . . . . . . Patrol Navigation 1 | . . . . . . . . 1 . . . . . . . . . . . . . . . . . . . . . . . . . . . Security Stations 1 | . . . . . . . . 1 . . . . . . . . . . . . . . . . . . . . . . . . . . . EX-Prototype ID Bank 1 | . . . . . 1 . . . . . . . . . . . . . . . . . . . . . . . . . . . . . . Fabricator Hacks 17 | . . . . . . . . . . . . . . . 9 . . . . . . . . . . 7 . . . . . . . . 1 Network Status 4 | . . . . . . . . . . . . . . . 2 . . . . . . . . . . 1 . . . . . . . . 1 Load Schematic 6 | . . . . . . . . . . . . . . . 3 . . . . . . . . . . 3 . . . . . . . . . Build 7 | . . . . . . . . . . . . . . . 4 . . . . . . . . . . 3 . . . . . . . . . Repair Station Hacks 37 | . 4 . 4 . . . 8 . 5 9 . . . . 1 . . . . . 2 . . . . 4 . . . . . . . . . Scan Component 20 | . 2 . 2 . . . 4 . 3 5 . . . . 1 . . . . . 1 . . . . 2 . . . . . . . . . Repair 17 | . 2 . 2 . . . 4 . 2 4 . . . . . . . . . . 1 . . . . 2 . . . . . . . . . Recycling Unit Hacks . | . . . . . . . . . . . . . . . . . . . . . . . . . . . . . . . . . . . . Scanalyzer 7 | . . . 2 . . . . . 2 3 . . . . . . . . . . . . . . . . . . . . . . . . . Insert Component 4 | . . . 1 . . . . . 1 2 . . . . . . . . . . . . . . . . . . . . . . . . . Analyze 3 | . . . 1 . . . . . 1 1 . . . . . . . . . . . . . . . . . . . . . . . . . Garrison Access Hacks 2 | . . . . . . . 1 . . 1 . . . . . . . . . . . . . . . . . . . . . . . . . Unlock Access 1 | . . . . . . . 1 . . . . . . . . . . . . . . . . . . . . . . . . . . . . Seal Access 1 | . . . . . . . . . . 1 . . . . . . . . . . . . . . . . . . . . . . . . . Unauthorized Hacks 24 | . 2 . 4 . . . 6 . 2 7 . . . . 2 . . . . . . . . . . 1 . . . . . . . . . Terminals 23 | . 2 . 3 . . . 6 . 2 7 . . . . 2 . . . . . . . . . . 1 . . . . . . . . . Assimilate 3 | . . . . . . . . . . 3 . . . . . . . . . . . . . . . . . . . . . . . . . Botnet 16 | . 1 . 2 . . . 5 . 1 4 . . . . 2 . . . . . . . . . . 1 . . . . . . . . . Operators 4 | . 1 . 1 . . . 1 . 1 . . . . . . . . . . . . . . . . . . . . . . . . . . Fabricators . | . . . . . . . . . . . . . . . . . . . . . . . . . . . . . . . . . . . . Repair Stations . | . . . . . . . . . . . . . . . . . . . . . . . . . . . . . . . . . . . . Recycling Units 1 | . . . 1 . . . . . . . . . . . . . . . . . . . . . . . . . . . . . . . . Tunnel 1 | . . . 1 . . . . . . . . . . . . . . . . . . . . . . . . . . . . . . . . Scanalyzers . | . . . . . . . . . . . . . . . . . . . . . . . . . . . . . . . . . . . . Garrison Access . | . . . . . . . . . . . . . . . . . . . . . . . . . . . . . . . . . . . . Data Cores Recovered 2 | . . . 1 . . . . . . . . . . . 1 . . . . . . . . . . . . . . . . . . . . Used . | . . . . . . . . . . . . . . . . . . . . . . . . . . . . . . . . . . . . Hacking Detections 77 | . 3 . 11 . . . 10 3 9 12 . . . . 10 . . . . . 3 1 . . . 6 . 1 . . . . 3 . 5 Full Trace Events 17 | . . . 1 . . . . 1 2 3 . . . . 4 . . . . . . . . . . 3 . . . . . . 1 . 2 Feedback Events 1 | . . . . . . . . . . 1 . . . . . . . . . . . . . . . . . . . . . . . . . Corruption 1 | . . . . . . . . . . 1 . . . . . . . . . . . . . . . . . . . . . . . . . Feedback Blocked . | . . . . . . . . . . . . . . . . . . . . . . . . . . . . . . . . . . . . Robot Schematics Acquired 5 | . . . . . . . . . . . . . 5 . . . . . . . . . . . . . . . . . . . . . . Robots Built . | . . . . . . . . . . . . . . . . . . . . . . . . . . . . . . . . . . . . Authchips . | . . . . . . . . . . . . . . . . . . . . . . . . . . . . . . . . . . . . Time . | . . . . . . . . . . . . . . . . . . . . . . . . . . . . . . . . . . . . Total Robot Build Rating . | . . . . . . . . . . . . . . . . . . . . . . . . . . . . . . . . . . . . Part Schematics Acquired 17 | . . . 1 . . . . . 1 4 . . 10 . . . . . . . . . . 1 . . . . . . . . . . . Parts Built 9 | . . . . . . . . . . . . . . . 6 . . . . . . . . . . 3 . . . . . . . . . Authchips 1 | . . . . . . . . . . . . . . . 1 . . . . . . . . . . . . . . . . . . . . Time 824 | . . . . . . . . . . . . . . . 383 . . . . . . . . . . 441 . . . . . . . . . Total Part Build Rating 52 | . . . . . . . . . . . . . . . 34 . . . . . . . . . . 18 . . . . . . . . . Parts Repaired 16 | . 2 . 1 . . . 4 . 2 4 . . . . . . . . . . 1 . . . . 2 . . . . . . . . . Time 654 | . 52 . 58 . . . 146 . 98 144 . . . . . . . . . . 50 . . . . 106 . . . . . . . . . Parts Recycled . | . . . . . . . . . . . . . . . . . . . . . . . . . . . . . . . . . . . . Recycled Matter . | . . . . . . . . . . . . . . . . . . . . . . . . . . . . . . . . . . . . Retrieved Matter . | . . . . . . . . . . . . . . . . . . . . . . . . . . . . . . . . . . . . Retrieved Components . | . . . . . . . . . . . . . . . . . . . . . . . . . . . . . . . . . . . . Parts Scanalyzed 3 | . . . 1 . . . . . 1 1 . . . . . . . . . . . . . . . . . . . . . . . . . Part Schematics Acquired 3 | . . . 1 . . . . . 1 1 . . . . . . . . . . . . . . . . . . . . . . . . . Parts Damaged 1 | . . . . . . . . . 1 . . . . . . . . . . . . . . . . . . . . . . . . . . Bothacking | -11 -10 -10 -9 -9 -9 -8 -8 -8 -8 -7 -7 -7 -7 -6 -6 -6 -6 -6 -6 -5 -5 -5 -5 -5 -4 -4 -4 -4 -4 -4 -4 -3 -3 -2 -1 ------------ Run | Jun Mat Min Mat Min Exi Min Mat Gar Mat Fac Low Low Dat Pro Fac Low Low Zio Dee Pro Fac Upp Upp Zhi Pro Fac Was Fac Upp Upp War Pro Res Res Acc Used RIF Installer . | . . . . . . . . . . . . . . . . . . . . . . . . . . . . . . . . . . . . Robots Hacked 1 | . . . . . . . . . . . . . . . . . . . 1 . . . . . . . . . . . . . . . . Non-combat . | . . . . . . . . . . . . . . . . . . . . . . . . . . . . . . . . . . . . Combat 1 | . . . . . . . . . . . . . . . . . . . 1 . . . . . . . . . . . . . . . . Robot Hacks Applied 1 | . . . . . . . . . . . . . . . . . . . 1 . . . . . . . . . . . . . . . . parse_system 1 | . . . . . . . . . . . . . . . . . . . 1 . . . . . . . . . . . . . . . . Relay Couplers Released 8 | . . . . . . . . 4 . . . . . . . . . . . . 2 . . . . . . . . . . . . 2 . Machine Destruction 4 | . . . . . . . . . . . . . . . . . . . . . 2 . . . . . . . . . . . . 2 . Programmers 4 | . . . . . . . . 4 . . . . . . . . . . . . . . . . . . . . . . . . . . . Fabnet Peak Effective % . | . . . . . . . . . . . . . . . . . . . . . . . . . . . . . . . . . . . . Robots Rewired 2 | . . . . . . . . . . . . . . . . . . . . 2 . . . . . . . . . . . . . . . Allies Hacked 2 | . . . . . . . . . . . . . . . . . . . . . . . . . . . . 2 . . . . . . . Hacks Repelled . | . . . . . . . . . . . . . . . . . . . . . . . . . . . . . . . . . . . . Allies | -11 -10 -10 -9 -9 -9 -8 -8 -8 -8 -7 -7 -7 -7 -6 -6 -6 -6 -6 -6 -5 -5 -5 -5 -5 -4 -4 -4 -4 -4 -4 -4 -3 -3 -2 -1 -------- Run | Jun Mat Min Mat Min Exi Min Mat Gar Mat Fac Low Low Dat Pro Fac Low Low Zio Dee Pro Fac Upp Upp Zhi Pro Fac Was Fac Upp Upp War Pro Res Res Acc Total Allies 34 | . . 3 . 1 . . . 2 . 2 . . . 1 . . . 3 . 2 . . . . . . 20 . . . . . . . . Largest Group 20 | . . 3 3 1 . . . 2 . 1 . . . 1 . . . 3 3 2 1 . . . . . 20 20 . . . . . . . Highest-Rated Group 772 | . . 40 40 31 . . . 56 . 26 . . . 96 . . . 81 81 59 29 . . . . . 772 772 . . . . . . . Highest-Rated Ally 96 | . . 16 16 31 . . . 31 . 26 . . . 96 . . . 28 28 30 29 . . . . . 50 50 . . . . . . . Total Orders 38 | . . . . . . . . . . . . . . . . . . . 16 6 5 . . . . 1 . 10 . . . . . . . RETURN 38 | . . . . . . . . . . . . . . . . . . . 16 6 5 . . . . 1 . 10 . . . . . . . Ally Attacks 568 | . . . 39 11 . . . 3 . . . . . 9 . . . . 143 27 67 . . . . 6 . 263 . . . . . . . Total Damage 10628 | . . . 374 122 . . . 69 . . . . . 242 . . . . 1960 617 1125 . . . . 152 . 5967 . . . . . . . Kills 77 | . . . 7 2 . . . . . . . . . 3 . . . . 14 5 9 . . . . 4 . 33 . . . . . . . Allies Corrupted 2 | . . . . . . . . . . . . . . . . . . . . . 1 . . . . . . 1 . . . . . . . Allies Melted . | . . . . . . . . . . . . . . . . . . . . . . . . . . . . . . . . . . . . Intel | -11 -10 -10 -9 -9 -9 -8 -8 -8 -8 -7 -7 -7 -7 -6 -6 -6 -6 -6 -6 -5 -5 -5 -5 -5 -4 -4 -4 -4 -4 -4 -4 -3 -3 -2 -1 ------- Run | Jun Mat Min Mat Min Exi Min Mat Gar Mat Fac Low Low Dat Pro Fac Low Low Zio Dee Pro Fac Upp Upp Zhi Pro Fac Was Fac Upp Upp War Pro Res Res Acc Robot Analysis Total 13 | . 2 . 2 . . . 1 . 1 . . . . . 3 . . . . . . . . 4 . . . . . . . . . . . Derelict Logs Recovered 20 | . . 1 . 1 . . . . . . 2 2 . 3 . 2 . 1 . 2 . . 2 . 1 . . . . 3 . . . . . Drone Launches 53 | . . . . . . . . . . . . . . . . . . . 18 8 5 . . . . 2 . 20 . . . . . . . Drone Recoveries 47 | . . . . . . . . . . . . . . . . . . . 16 6 5 . . . . 2 . 18 . . . . . . . Exploration | -11 -10 -10 -9 -9 -9 -8 -8 -8 -8 -7 -7 -7 -7 -6 -6 -6 -6 -6 -6 -5 -5 -5 -5 -5 -4 -4 -4 -4 -4 -4 -4 -3 -3 -2 -1 ------------- Run | Jun Mat Min Mat Min Exi Min Mat Gar Mat Fac Low Low Dat Pro Fac Low Low Zio Dee Pro Fac Upp Upp Zhi Pro Fac Was Fac Upp Upp War Pro Res Res Acc Turns Passed 61219 | 89 2498 225 2977 1137 759 906 2813 2047 2996 4682 1501 618 151 429 5350 935 776 1280 5172 889 2345 699 685 998 1036 4135 577 1251 607 638 706 1402 2849 1973 3088 Spaces Moved 26808 | 53 1134 136 1573 757 328 378 1355 1072 1195 2103 795 367 90 249 1957 373 303 705 2015 400 940 302 305 231 454 1620 165 518 293 337 359 630 1187 970 1159 Core 4 | 4 . . . . . . . . . . . . . . . . . . . . . . . . . . . . . . . . . . . Treads 16352 | 49 1134 136 1573 757 328 378 1355 1072 1195 2103 795 367 90 249 1957 373 303 705 1433 . . . . . . . . . . . . . . . . Legs 10312 | . . . . . . . . . . . . . . . . . . . 450 400 940 302 305 231 454 1620 157 518 293 337 359 630 1187 970 1159 Wheels 132 | . . . . . . . . . . . . . . . . . . . 132 . . . . . . . . . . . . . . . . Hover 8 | . . . . . . . . . . . . . . . . . . . . . . . . . . . 8 . . . . . . . . Flight . | . . . . . . . . . . . . . . . . . . . . . . . . . . . . . . . . . . . . Fastest Speed 50 | 50 160 160 145 145 145 225 151 165 158 163 165 165 165 156 158 245 245 165 210 210 180 210 210 210 183 183 226 185 185 185 175 125 172 185 116 Average Speed 188 | 151 160 160 153 145 228 230 155 165 161 174 177 165 165 158 229 245 245 180 237 210 209 210 210 210 197 186 325 206 185 185 178 174 193 185 160 Slowest Speed 1860 | 160 160 160 240 145 305 237 238 165 165 250 243 165 165 165 246 245 245 245 270 210 210 210 210 210 210 226 1860 226 185 185 185 175 275 185 260 Overloaded Moves . | . . . . . . . . . . . . . . . . . . . . . . . . . . . . . . . . . . . . Propulsion Burnouts . | . . . . . . . . . . . . . . . . . . . . . . . . . . . . . . . . . . . . Robots Hopped . | . . . . . . . . . . . . . . . . . . . . . . . . . . . . . . . . . . . . Cave-ins Triggered . | . . . . . . . . . . . . . . . . . . . . . . . . . . . . . . . . . . . . Exploration Rate (%) 59 | 5 99 34 94 98 68 94 77 83 61 45 71 58 68 46 31 62 64 75 92 67 24 59 53 62 61 36 77 20 61 61 45 81 32 49 14 Regions Visited 35 Branch Regions 21 Pre-discovered Areas 12 | . . . 1 . . . . . . . 2 1 1 . . 1 . 1 . . . . . 1 1 . . . . 3 . . . . . Known Exits Taken 11 | . . . . . . . 1 . 1 1 . . . 1 1 . . . . 1 1 1 . . 1 . . 1 . 1 . . . . . Unknown Exits Taken 21 | 1 1 1 1 1 1 1 . . . . 1 1 1 . . 1 1 1 1 . . . 1 1 . . . . 1 . 1 1 1 1 . Scrap Searched 30 | . . . . 2 . 1 . . . . 4 3 . 3 . 2 3 . . . . . 4 . 3 . . . 2 1 . 2 . . . Spaces Dug 325 | . . . . . . . . 111 . 44 8 . . . 14 . . . . 25 . . . . . 68 . 19 4 . . 7 14 3 8 Terrain Destroyed 2855 | . 29 . 86 64 . 49 54 238 . 148 61 1 . 35 36 49 49 . 37 194 59 11 8 . 15 141 1 223 6 4 2 14 327 103 811 Melee . | . . . . . . . . . . . . . . . . . . . . . . . . . . . . . . . . . . . . Projectile 406 | . . . 6 . . 1 . . . . 9 1 . . 8 . 1 . . 2 28 11 8 . 15 49 1 10 6 4 2 14 70 27 133 AOE 2449 | . 29 . 80 64 . 48 54 238 . 148 52 . . 35 28 49 48 . 37 192 31 . . . . 92 . 213 . . . . 257 76 678 Terrain Rammed . | . . . . . . . . . . . . . . . . . . . . . . . . . . . . . . . . . . . . Walls Destroyed . | . . . . . . . . . . . . . . . . . . . . . . . . . . . . . . . . . . . . Machines Disabled . | . . . . . . . . . . . . . . . . . . . . . . . . . . . . . . . . . . . . Actions | -11 -10 -10 -9 -9 -9 -8 -8 -8 -8 -7 -7 -7 -7 -6 -6 -6 -6 -6 -6 -5 -5 -5 -5 -5 -4 -4 -4 -4 -4 -4 -4 -3 -3 -2 -1 --------- Run | Jun Mat Min Mat Min Exi Min Mat Gar Mat Fac Low Low Dat Pro Fac Low Low Zio Dee Pro Fac Upp Upp Zhi Pro Fac Was Fac Upp Upp War Pro Res Res Acc Total 34768 | 59 1649 139 1861 777 336 396 1768 1231 2175 2896 855 374 93 271 2667 384 324 715 2274 428 1180 329 324 747 521 2582 197 649 348 342 400 786 1509 1062 2120 Wait 5088 | . 409 1 65 2 . . 180 35 857 528 19 . . . 546 . . . 69 3 97 . . 497 11 795 18 52 50 . 6 57 156 2 633 Move 26771 | 52 1133 135 1572 756 327 377 1354 1069 1194 2102 794 366 89 248 1956 372 302 704 2014 399 939 301 304 230 453 1620 164 517 292 336 358 629 1186 969 1158 Hop . | . . . . . . . . . . . . . . . . . . . . . . . . . . . . . . . . . . . . Pick Up 210 | 1 9 . 15 1 2 . 12 4 9 16 3 1 . . 10 . 1 2 17 . 25 1 3 1 8 21 . 8 . 1 3 3 11 15 7 Fast Attach 161 | 6 5 . 12 . 2 . 17 4 7 13 2 . 2 2 9 . 2 2 18 . 3 . . 5 2 5 3 2 . . 5 5 5 3 20 Attach 99 | . . . 6 . . 3 8 4 2 7 . . . . 11 . 2 1 12 . 3 . . . . 7 . 6 . . . . 6 3 18 Detach 132 | . 1 . 4 . . . 5 2 . 2 . . . 1 9 . 3 2 13 1 10 . . 11 . 16 3 14 . . 8 8 7 2 10 Swap 191 | . 2 1 19 4 2 2 16 8 11 29 7 1 . 3 23 3 1 . 10 2 . . . 2 2 10 . 6 1 . 1 3 9 9 4 Drop 220 | . 4 . 19 2 3 . 20 3 14 21 3 1 2 2 12 . 2 4 21 . 10 1 2 1 6 18 4 9 . . 3 6 8 15 4 Fire 1807 | . 83 2 137 10 . 13 151 101 79 168 24 2 . 15 83 9 11 . 88 14 92 26 15 . 39 83 5 29 5 5 16 75 118 44 265 Melee 1 | . . . . . . . . . . . . . . . . . . . 1 . . . . . . . . . . . . . . . . Ram . | . . . . . . . . . . . . . . . . . . . . . . . . . . . . . . . . . . . . Kick 13 | . . . . . . . . . . . . . . . . . . . . . 1 . . . . 7 . 1 . . . . 3 . 1 Crush 55 | . 3 . 12 2 . 1 5 . 2 10 3 3 . . 6 . . . 8 . . . . . . . . . . . . . . . . Escape Stasis 2 | . . . . . . . . . . . . . . . 2 . . . . . . . . . . . . . . . . . . . . Rewire 10 | . . . . . . . . 1 . . . . . . . . . . . 9 . . . . . . . . . . . . . . . Trap . | . . . . . . . . . . . . . . . . . . . . . . . . . . . . . . . . . . . . Miscellaneous 8 | . . . . . . . . . . . . . . . . . . . 3 . . . . . . . . 5 . . . . . . . Route ------- -11/Junkyard -10/Materials (discovered 4 exits: *Mat x3 / [*Min]) -10/Mines -9/Materials (discovered 6 exits: *Mat x3 / [*Min] / [*Sto x2]) -9/Mines (discovered 3 exits: *Mat x2 / *Exi) -9/Exiles -8/Mines (discovered 2 exits: *Mat x2) -8/Materials (discovered 3 exits: *Fac x2 / Gar) -8/Garrison (discovered 3 exits: *Mat x3) -8/Materials (discovered 3 exits: *Fac x3) -7/Factory (discovered 2 exits: *Low x2) -7/Lower Caves -7/Lower Caves (discovered 2 exits: *Fac / *Dat) -7/Data Miner -6/Proximity Caves -6/Factory (discovered 4 exits: *Fac x2 / *Low x2) -6/Lower Caves -6/Lower Caves -6/Zion (discovered 2 exits: [*Dee] / Pro) -6/Deep Caves -5/Proximity Caves -5/Factory (discovered 2 exits: Fac / *Upp) -5/Upper Caves -5/Upper Caves (discovered 2 exits: *Fac / *Zhi) -5/Zhirov -4/Proximity Caves -4/Factory (discovered 3 exits: *Res x2 / Upp) -4/Waste -4/Factory (discovered 2 exits: *Res / *Upp) -4/Upper Caves -4/Upper Caves -4/Warlord -3/Proximity Caves -3/Research (discovered 2 exits: [*Res] / *Qua) -2/Research (discovered 2 exits: *Acc / *Tes) -1/Access To Epsilon Eridani History --------- Turn | Location | Event 3 | -11/Junkyard | Discovered new exit (range 15) 90 | -11/Junkyard | Entered Materials 303 | -10/Materials | Build established: Mutant 771 | -10/Materials | Discovered new exit (range 16) 983 | -10/Materials | Discovered new exit (range 14) 986 | -10/Materials | Central database locked down 1277 | -10/Materials | Discovered new exit (range 16) 1387 | -10/Materials | Repaired Lgt. Treads 1415 | -10/Materials | Repaired Assault Rifle 1921 | -10/Materials | Discovered new exit (range 4) 2588 | -10/Materials | Entered Mines 2632 | -10/Mines | Assembled infested the area 2634 | -10/Mines | Assisted by bots powering up and referring to "LRC-V3" 2637 | -10/Mines | Assisted by a Guerilla fighting off Assembled 2693 | -10/Mines | Learned Materials stockpile data 2730 | -10/Mines | Discovered new exit (range 11) 2813 | -10/Mines | Entered Materials 2813 | -9/Materials | Accompanied by 3 allies 2813 | -9/Materials | Evolved 2 slots: Utility x2 2892 | -9/Materials | Discovered new exit (range 8) 3415 | -9/Materials | Discovered new exit (range 12) 3700 | -9/Materials | Lost 3 parts (1n2u) 3751 | -9/Materials | Discovered new exit (range 16) 4573 | -9/Materials | Discovered new exit (range 5) 4734 | -9/Materials | Repaired Shield Generator 4741 | -9/Materials | Discovered new exit (range 12) 4934 | -9/Materials | Discovered new exit (range 14) 5213 | -9/Materials | First assault squad dispatched 5332 | -9/Materials | Destroyed 10 combat bots 5395 | -9/Materials | System corruption reached 10% 5790 | -9/Materials | Entered Mines 6152 | -9/Mines | Found a damaged Exp. Sensor Array with a note attached 6159 | -9/Mines | Found Prototype Device 6180 | -9/Mines | Learned location of 1 exit from Proximity Caves 6235 | -9/Mines | Discovered new exit (range 9) 6291 | -9/Mines | Met a Derelict testing a Signal Generator 6454 | -9/Mines | Discovered new exit (range 10) 6918 | -9/Mines | Deemed a non-threat by the Exiles lab entrance 6918 | -9/Mines | Discovered new exit (range 6) 6927 | -9/Mines | Entered Exiles 6951 | -9/Exiles | Discovered new exit (range 14) 6979 | -9/Exiles | Met 8R-AWN 7004 | -9/Exiles | Met EX-HEX 7043 | -9/Exiles | Met EX-BIN 7060 | -9/Exiles | Aligned with FarCom system 7062 | -9/Exiles | Given EX-Vault access code 7095 | -9/Exiles | Opened EX-Vault 7113 | -9/Exiles | Found XL Autogun Array 7178 | -9/Exiles | Warned to stay clear of 0b10 Research branches 7273 | -9/Exiles | Met EX-DEC 7686 | -9/Exiles | Left Exiles lab with XL Autogun Array 7686 | -9/Exiles | Entered Mines 7759 | -8/Mines | Lost 3 parts (1n2w) 7773 | -8/Mines | Discovered new exit (range 15) 8284 | -8/Mines | Discovered new exit (range 5) 8592 | -8/Mines | Entered Materials 8592 | -8/Materials | Evolved 2 slots: Propulsion x2 8654 | -8/Materials | Identified Exp. Sensor Array 8933 | -8/Materials | Identified exit to Garrison 9436 | -8/Materials | Repaired Hrd. Light Armor Plating 9476 | -8/Materials | Repaired Arm. Treads 9515 | -8/Materials | Repaired Adv. Treads 9555 | -8/Materials | Repaired Adv. Treads 9803 | -8/Materials | Lost 3 parts (2u1w) 9853 | -8/Materials | Destroyed 9 combat bots 10258 | -8/Materials | Discovered new exit (range 11) 10553 | -8/Materials | Discovered new exit (range 5) 11405 | -8/Materials | Entered Garrison 11447 | -8/Garrison | Build established: Scavenger-Mutant 11470 | -8/Garrison | Triggered checkpoint 11725 | -8/Garrison | Triggered checkpoint 11727 | -8/Garrison | Triggered checkpoint 11744 | -8/Garrison | Core integrity fell below 50% 11788 | -8/Garrison | Destroyed 9 combat bots 11850 | -8/Garrison | Discovered new exit (range 13) 11918 | -8/Garrison | Learned Materials security intel 11926 | -8/Garrison | Triggered checkpoint 12056 | -8/Garrison | Build established: Mutant 12064 | -8/Garrison | Triggered checkpoint 12136 | -8/Garrison | Discovered new exit (range 13) 12204 | -8/Garrison | Triggered checkpoint 12458 | -8/Garrison | Discovered new exit (range 8) 12490 | -8/Garrison | Triggered checkpoint 12724 | -8/Garrison | Rescued a captive Derelict 12724 | -8/Garrison | Rescued a captive Derelict 13180 | -8/Garrison | Attempted to access garrison exit controls, blocked by remote lockdown 13333 | -8/Garrison | Attempted to access garrison exit controls, blocked by remote lockdown 13452 | -8/Garrison | Entered Materials 13698 | -8/Materials | Repaired Arm. Treads 14061 | -8/Materials | Build established: Hacker-Mutant 14070 | -8/Materials | Identified exit to Factory 14678 | -8/Materials | Build established: Scavenger-Mutant 15008 | -8/Materials | Build established: Hacker-Mutant 15384 | -8/Materials | Repaired Enh. Autogun 16448 | -8/Materials | Entered Factory 16448 | -7/Factory | Evolved 2 slots: Utility x2 17232 | -7/Factory | Identified exit to Lower Caves 17441 | -7/Factory | Repaired Broken Enh. Autogun 17511 | -7/Factory | Repaired Broken Exp. Sensor Array 17746 | -7/Factory | Cargo convoy interrupted 18179 | -7/Factory | Repaired Arm. Treads 18200 | -7/Factory | Repaired Arm. Treads 19074 | -7/Factory | Garrison activated, responded to threat 19177 | -7/Factory | System corruption reached 10% 19906 | -7/Factory | Build established: Mutant 20200 | -7/Factory | P-60 Hacker assimilated allied Administrator 4b 20229 | -7/Factory | Found Rocket Array 20448 | -7/Factory | First assault squad dispatched 21130 | -7/Factory | Entered Lower Caves 21136 | -7/Lower Caves | Met a Warlord Commander 21137 | -7/Lower Caves | Learned location of Warlord (-4) 21150 | -7/Lower Caves | Found Unknown Device 21490 | -7/Lower Caves | Learned 4 Factory zone layouts 22287 | -7/Lower Caves | Discovered new exit (range 16) 22287 | -7/Lower Caves | Spotted B-75 Beast 22631 | -7/Lower Caves | Entered another Lower Caves area 22648 | -7/Lower Caves | Discovered new exit (range 10) 22752 | -7/Lower Caves | Learned Factory security intel 22948 | -7/Lower Caves | Encountered a Warlord checkpoint 22950 | -7/Lower Caves | Learned location of Zion (-6) 23212 | -7/Lower Caves | Discovered new exit (range 8) 23235 | -7/Lower Caves | Attracted the attention of an 0b10 outpost 23249 | -7/Lower Caves | Entered Data Miner 23250 | -7/Data Miner | Discovered new exit (range 6) 23282 | -7/Data Miner | Met Data Miner 23313 | -7/Data Miner | Learned location of Section 7 (-3) 23313 | -7/Data Miner | Acquired the access code to Warlord's prototype stash 23340 | -7/Data Miner | Received God Mode back door access code from Data Miner 23400 | -7/Data Miner | Entered Proximity Caves 23401 | -6/Proximity Caves | Identified exit to Factory 23458 | -6/Proximity Caves | Learned Factory garrison access intel 23604 | -6/Proximity Caves | Escorted by Enhanced Grunt 23635 | -6/Proximity Caves | Attracted the attention of an 0b10 checkpoint 23829 | -6/Proximity Caves | Entered Factory 23829 | -6/Factory | Evolved 2 slots: Utility x2 23830 | -6/Factory | Identified exit to Factory 23832 | -6/Factory | Loaded intel: 4 garrison access locations 24127 | -6/Factory | Build established: Hacker-Mutant 24601 | -6/Factory | Fabricated Combat Drone Bay? 25761 | -6/Factory | Fabricated Arm. Medium Treads (x2) 25956 | -6/Factory | Found Hvy. Insulated Plating 26453 | -6/Factory | Discovered new exit (range 11) 26456 | -6/Factory | Discovered new exit (range 11) 26859 | -6/Factory | Lost 4 parts (1n1u2w) 27954 | -6/Factory | Identified exit to Lower Caves 28249 | -6/Factory | Discovered exit to Factory (range 15) 28455 | -6/Factory | Fabricated Adv. Terrain Scanner (x2) 28496 | -6/Factory | Incoming investigation squad redirected 28648 | -6/Factory | Fabricated Combat Drone Bay (x1) 29079 | -6/Factory | First assault squad dispatched 29099 | -6/Factory | Incoming assault squad redirected 29179 | -6/Factory | Entered Lower Caves 29197 | -6/Lower Caves | Learned 12 Factory zone layouts 29307 | -6/Lower Caves | Identified Encrypted Comm Array 29791 | -6/Lower Caves | Learned location of Extension (-4) 29842 | -6/Lower Caves | Discovered new exit (range 8) 30114 | -6/Lower Caves | Entered another Lower Caves area 30861 | -6/Lower Caves | Discovered new exit (range 8) 30890 | -6/Lower Caves | Entered Zion 30944 | -6/Zion | System corruption cleaned by Quarantine Array 31167 | -6/Zion | Gained Derelict followers 31268 | -6/Zion | Identified exit to Proximity Caves 31375 | -6/Zion | Learned Factory emergency access door positions 31560 | -6/Zion | Acquired unknown access codes intercepted by a Zionite 31834 | -6/Zion | Found Prototype Special Weapon 31834 | -6/Zion | Identified RU-N14's Throwing Claymores 31838 | -6/Zion | Found RU-N14's Throwing Claymores 32036 | -6/Zion | Found RU-N14's Throwing Claymores 32121 | -6/Zion | Opened final containment barrier to the Deep Caves 32160 | -6/Zion | Discovered new exit (range 3) 32160 | -6/Zion | Saw the warning signs outside the Deep Caves entrance 32170 | -6/Zion | Entered Deep Caves 32170 | -6/Deep Caves | Accompanied by 3 allies 32576 | -6/Deep Caves | Z-Facility disabled 32625 | -6/Deep Caves | Attacked by Z-Imprinter 32641 | -6/Deep Caves | Allies destroyed Z-Imprinter 32757 | -6/Deep Caves | Found Prototype Protection 32757 | -6/Deep Caves | Identified Zio. Weapon Casing 33408 | -6/Deep Caves | Found Prototype Protection 33408 | -6/Deep Caves | Identified Zio. Heavy Carapace 33972 | -6/Deep Caves | Found Zio. Weapon Casing 34264 | -6/Deep Caves | Found Zio. Heavy Carapace 34284 | -6/Deep Caves | Build established: Scavenger-Mutant 35036 | -6/Deep Caves | Found Zio. Weapon Casing 35853 | -6/Deep Caves | Spotted as-59312 35866 | -6/Deep Caves | Destroyed as-59312 35893 | -6/Deep Caves | Triggered Deep Caves wall 35897 | -6/Deep Caves | Spotted AS-44784 35905 | -6/Deep Caves | Destroyed AS-44784 35926 | -6/Deep Caves | Destroyed 36 combat bots 35935 | -6/Deep Caves | Spotted as-45389 35948 | -6/Deep Caves | System corruption reached 10% 35951 | -6/Deep Caves | Exposed GOLEM chamber 35958 | -6/Deep Caves | Core integrity fell below 50% 35970 | -6/Deep Caves | Destroyed as-45389 35976 | -6/Deep Caves | Spotted AS-65112 35982 | -6/Deep Caves | Destroyed AS-65112 35991 | -6/Deep Caves | Lost 12 parts (1p3n6u2w) 36020 | -6/Deep Caves | Destroyed 12 combat bots 36116 | -6/Deep Caves | Found GOLEM Unit 36184 | -6/Deep Caves | Found Cloak of Protection 36251 | -6/Deep Caves | Build established: Mutant 36486 | -6/Deep Caves | Found GOLEM Unit 36491 | -6/Deep Caves | Found GOLEM Unit 36501 | -6/Deep Caves | Found GOLEM Unit 36786 | -6/Deep Caves | Build established: Golem 36857 | -6/Deep Caves | Discovered new exit (range 6) 37342 | -6/Deep Caves | Entered Proximity Caves 37432 | -5/Proximity Caves | Learned location of 1 exit from Upper Caves 37654 | -5/Proximity Caves | Attracted the attention of an 0b10 outpost 37690 | -5/Proximity Caves | Destroyed 7 combat bots 38093 | -5/Proximity Caves | Learned Factory stockpile data 38192 | -5/Proximity Caves | Discovered exit to Factory (range 20) 38231 | -5/Proximity Caves | Entered Factory 38231 | -5/Factory | Accompanied by 3 allies 38231 | -5/Factory | Evolved 2 slots: Power x1, Utility x1 38232 | -5/Factory | Identified exit to Upper Caves 38233 | -5/Factory | Identified exit to Factory 39117 | -5/Factory | Repaired Imp. Heavy Armor Plating? 40331 | -5/Factory | First assault squad dispatched 40576 | -5/Factory | Entered Upper Caves 40577 | -5/Upper Caves | Identified exit to Upper Caves 40778 | -5/Upper Caves | Spotted B-75 Beast 40813 | -5/Upper Caves | Attracted the attention of an 0b10 checkpoint 41275 | -5/Upper Caves | Entered another Upper Caves area 41385 | -5/Upper Caves | Discovered exit to Factory (range 14) 41537 | -5/Upper Caves | Encountered a Warlord checkpoint 41874 | -5/Upper Caves | Discovered new exit (range 5) 41960 | -5/Upper Caves | Entered Zhirov 41961 | -5/Zhirov | Discovered new exit (range 3) 42169 | -5/Zhirov | Learned location of Testing (-2) 42232 | -5/Zhirov | Found Alien Artifact 42871 | -5/Zhirov | Found Alien Artifact 42871 | -5/Zhirov | Identified Integrated Dissipator 42871 | -5/Zhirov | Installed Integrated Dissipator, increased core heat dissipation (+20) 42958 | -5/Zhirov | Entered Proximity Caves 43660 | -4/Proximity Caves | Spotted B-86 Titan 43759 | -4/Proximity Caves | Destroyed B-86 Titan 43773 | -4/Proximity Caves | Lost 4 parts (3u1w) 43902 | -4/Proximity Caves | Discovered exit to Factory (range 11) 43994 | -4/Proximity Caves | Entered Factory 43994 | -4/Factory | Evolved 2 slots: Utility x2 43995 | -4/Factory | Identified exit to Upper Caves 45082 | -4/Factory | Discovered new exit (range 6) 45248 | -4/Factory | Repaired Transmission Jammer 45312 | -4/Factory | Repaired Adv. Power Amplifier? 45706 | -4/Factory | Build established: Hacker-Golem 45739 | -4/Factory | Incoming investigation squad redirected 45897 | -4/Factory | Fabricated Assault Drone Bay? 46180 | -4/Factory | Fabricated Rocket Array? 47184 | -4/Factory | Discovered new exit (range 7) 47521 | -4/Factory | Incoming investigation squad redirected 47571 | -4/Factory | System corruption reached 10% 47596 | -4/Factory | Destroyed 8 combat bots 47687 | -4/Factory | Fabricated Assault Drone Bay? 48053 | -4/Factory | Build established: Golem 48129 | -4/Factory | Sucked down chute 48129 | -4/Factory | Entered Waste 48130 | -4/Waste | Joined by Warlord forces that had cleared the area 48678 | -4/Waste | Discovered new exit (range 12) 48706 | -4/Waste | Entered Factory 48706 | -4/Factory | Accompanied by 20 allies 49088 | -4/Factory | Spotted B-86 Titan 49096 | -4/Factory | Allies destroyed B-86 Titan 49183 | -4/Factory | Discovered new exit (range 23) 49417 | -4/Factory | P-70 Sage assimilated allied DT-FHT(m) 49652 | -4/Factory | P-70 Sage assimilated allied LW-VN8(m) 49658 | -4/Factory | P-70 Sage assimilated allied U4-XX6(g) 49706 | -4/Factory | First assault squad dispatched 49780 | -4/Factory | Cargo convoy interrupted 49832 | -4/Factory | Destroyed 14 combat bots 49879 | -4/Factory | Discovered exit to Upper Caves (range 12) 49902 | -4/Factory | Destroyed 7 combat bots 49908 | -4/Factory | Lost 4 parts (3u1w) 49957 | -4/Factory | Entered Upper Caves 50383 | -4/Upper Caves | Spotted B-86 Titan 50538 | -4/Upper Caves | Discovered new exit (range 14) 50564 | -4/Upper Caves | Entered another Upper Caves area 50565 | -4/Upper Caves | Identified exit to Warlord 50587 | -4/Upper Caves | Learned location of Armory (-4) 50761 | -4/Upper Caves | Attracted the attention of an 0b10 checkpoint 50963 | -4/Upper Caves | Spotted B-86 Titan 50972 | -4/Upper Caves | Destroyed B-86 Titan 51202 | -4/Upper Caves | Entered Warlord 51269 | -4/Warlord | System corruption cleaned by Quarantine Array 51376 | -4/Warlord | Met Warlord 51395 | -4/Warlord | Opened Warlord's prototype stash 51401 | -4/Warlord | Warlord's base attacked by MAIN.C 51401 | -4/Warlord | Found Prototype Reactor 51401 | -4/Warlord | Identified Vortex Chain Reactor 51430 | -4/Warlord | Found Prototype Device 51430 | -4/Warlord | Identified Exp. Focal Shield 51434 | -4/Warlord | Found Prototype Processor 51434 | -4/Warlord | Identified Spectral Analyzer 51751 | -4/Warlord | Warlord forces counterattacked 51776 | -4/Warlord | Spotted B-90 Cyclops 51814 | -4/Warlord | Spotted Executioner 51814 | -4/Warlord | Spotted Striker 51821 | -4/Warlord | Destroyed Striker 51823 | -4/Warlord | Spotted Executioner 51829 | -4/Warlord | Destroyed Executioner 51847 | -4/Warlord | Destroyed Executioner 51896 | -4/Warlord | Discovered new exit (range 8) 51908 | -4/Warlord | Entered Proximity Caves 51910 | -3/Proximity Caves | Attracted the attention of an 0b10 checkpoint 52099 | -3/Proximity Caves | Spotted B-86 Titan 52894 | -3/Proximity Caves | Discovered new exit (range 22) 53083 | -3/Proximity Caves | Found Prototype Launcher 53083 | -3/Proximity Caves | Identified Gui. Missile Launcher 53310 | -3/Proximity Caves | Entered Research 53310 | -3/Research | Evolved 2 slots: Weapon x2 53612 | -3/Research | Incoming investigation squad redirected 53647 | -3/Research | Discovered new exit (range 17) 53754 | -3/Research | Spotted B-90 Cyclops 54274 | -3/Research | Destroyed B-90 Cyclops 54396 | -3/Research | Destroyed 9 combat bots 54460 | -3/Research | Identified exit to Quarantine 54560 | -3/Research | Incoming investigation squad redirected 54854 | -3/Research | First assault squad dispatched 55241 | -3/Research | Lost 3 parts (1n1u1w) 55609 | -3/Research | Lost 3 parts (1u2w) 55618 | -3/Research | Incoming assault squad redirected 55872 | -3/Research | System corruption reached 10% 56075 | -3/Research | Incoming assault squad redirected 56081 | -3/Research | Incoming assault squad redirected 56133 | -3/Research | Discovered new exit (range 14) 56159 | -3/Research | Entered another Research area 56159 | -2/Research | Warlord forces began assault on 0b10 56159 | -2/Research | Evolved 2 slots: Power x1, Utility x1 56269 | -2/Research | Research machine network offline 56525 | -2/Research | Borebot progress halted 56786 | -2/Research | Met up with Warlord 56851 | -2/Research | Borebot progress halted 57098 | -2/Research | Discovered new exit (range 15) 57259 | -2/Research | Identified exit to Testing 57330 | -2/Research | Warlord invited to help at Command 57351 | -2/Research | Borebot progress halted 57378 | -2/Research | Spotted Executioner 57383 | -2/Research | Spotted Striker 57398 | -2/Research | Destroyed Striker 57412 | -2/Research | Destroyed Executioner 57838 | -2/Research | Spotted Executioner 57840 | -2/Research | Spotted Executioner 57842 | -2/Research | Destroyed Executioner 57846 | -2/Research | Destroyed Executioner 57877 | -2/Research | Spotted B-90 Cyclops 57989 | -2/Research | Spotted Striker 57990 | -2/Research | Spotted Striker 58004 | -2/Research | Destroyed Striker 58007 | -2/Research | Destroyed Striker 58062 | -2/Research | Spotted Striker 58062 | -2/Research | Spotted Striker 58069 | -2/Research | Lost 3 parts (2u1w) 58112 | -2/Research | Discovered new exit (range 8) 58132 | -2/Research | Entered Access 58132 | -1/Access | Evolved 2 slots: Propulsion x2 58419 | -1/Access | First assault squad dispatched 58493 | -1/Access | Destroyed 9 combat bots 58518 | -1/Access | Spotted B-99 Colossus 58686 | -1/Access | Incoming assault squad redirected 58807 | -1/Access | Incoming investigation squad redirected 59033 | -1/Access | Discovered new exit (range 5) 59658 | -1/Access | System corruption reached 10% 59817 | -1/Access | Lost 3 parts (2u1w) 59956 | -1/Access | Incoming assault squad redirected 59961 | -1/Access | Incoming assault squad redirected 59962 | -1/Access | Lost 4 parts (1n1u2w) 59987 | -1/Access | Destroyed 9 combat bots 60011 | -1/Access | Lost 4 parts (1p1n2u) 60107 | -1/Access | Found Prototype Launcher 60151 | -1/Access | Incoming assault squad redirected 60221 | -1/Access | Incoming assault squad redirected 60276 | -1/Access | Destroyed 10 combat bots 60284 | -1/Access | Build established: Hacker-Gunner 60431 | -1/Access | Incoming assault squad redirected 60674 | -1/Access | Incoming assault squad redirected 60684 | -1/Access | Identified Adv. Micro-nuke Launcher 60686 | -1/Access | Incoming assault squad redirected 60727 | -1/Access | Lost 4 parts (1p2u1w) 60760 | -1/Access | Found Faulty Adv. Micro-nuke Launcher 60762 | -1/Access | Found Adv. Micro-nuke Launcher 60912 | -1/Access | Incoming assault squad redirected 60997 | -1/Access | High security lockdown imminent 61023 | -1/Access | Destroyed 10 combat bots 61077 | -1/Access | High security lockdown engaged 61191 | -1/Access | Destroyed 10 combat bots 61197 | -1/Access | Lost 9 parts (2p4n3w) 61204 | -1/Access | Spotted Striker 61210 | -1/Access | Destroyed Striker 61220 | *** | Escaped! Last Messages --------------- 61208_ P-80 Master destroyed. 61209_ The unstable cave ceiling collapses. 61210_ Striker destroyed. 61212_ The unstable cave ceiling collapses. 61212_ 49 Matter crushed. 61212_ Imp. Core Shielding destroyed. 61214_ System corrupted: Matter fused (-8). 61214_ R-10 Processor collects Myomer Leg. 61215_ The unstable cave ceiling collapses. 61215_ Critical hit (Burn: +37). 61216_ P-80 Master resets G-73 Enforcer, system corruption cleaned. 61216_ Destroyed Com. Wheel. 61216_ R-10 Processor destroyed. 61218_ Lgt. Antimatter Reactor destroyed. 61218_ RU-N14's Throwing Claymores expended. 61218_ P-80 Master destroyed. 61218_ Critical hit (Burn: +37). [Achievement: Rambo] [Achievement: Victory By Combat] [Achievement: Death Machine] Map ----- +----------------------------------------------------+ | ?# ## ######?????####??????###########%%####### | | ?# # #?????####??????######???## # | | ## #??##### ################## # | | ! ######## ######## ####### # """" | | ?# ##### # ## # ### # "" F | | ?# ## # # ### # " " | | ?# # # # ## # # ???# + | | ?# % ## ## ##???# # | | ?# % = # # #|## ## ???# # %= | | ## % % # # ### # ### ####### | | # # #+###### # ## ######## %= | | # = % % [ =%[ | | # | | # #######+#### ! ##### | | ## %### #%% % g%%= ####### ####### | | ## #?# =! ##?## ## ## | | ?# #?# # # gg ###??#######? | | ?# #?# # # ####??????????? | | ?# #?# % # # ####??????????? | | ?# #?# # ## ###????????????? | | ## ### # ###????????????? | | # ## # #####?????????????? | | ## ### ### #?????????????? | | "" ## ### ### #?????????##??? | | # ## ### # # #????????# #??? | | ## #### ### @" ## #???????# #???? | | ?# #??# = ### "" ############"#????? | | ?# #??######=######## % ### #?????? | | ?# #???????#C#####?## ###! #?????? | | ?# #???????# #?????## ### """"" *#?????? | | ##+######### #?????##""""""""""### """"" #?????? | | #%#?????##"????????"### """"" #?????? | | # #???????????????????# """""g #?????? | | # #???????""""????????# """""g #?????? | | " # #???????? ???????# #?????? | | """" # #????????BB ?BB???# #?????? | | """"" # #????????BB BB?### """"" ####### | | """"" # #??????# ???? ? # # """"" ## | | """" # #??????# ???? ## """ " ## | | " # #??????# ???? ### "" ## | | # #???????? ?? # " ## | | # +?????????# #### ## | | # #???????### # = [ ## | | #####+###### ########### ##########/###### | | ### =[%=% % | | !!| %[ | | * | | ### % % # | | ###########+######+######+#############+######+### | | # # | +----------------------------------------------------+ Best States ------------- Heat Dissipation 114 Energy Generation 75 Energy Capacity 1790 Matter Stores 600 Matter Capacity 600 Sight Range 24 Robot Scan Range 20 Terrain Scan Range 20 Terrain Scan Density 210 Jamming Range 12 Cloak Strength 5 Power Amplification 30 Additional Mass Support 20 Armor Coverage 1200 Resistance: KI 30 Resistance: TH 15 Resistance: EX 15 Resistance: EM 30 Resistance: I 15 Resistance: S 15 Resistance: P 15 Core Shielding 40 Propulsion Shielding 66 Utility Shielding 66 Weapon Shielding 100 Melee Speed Boost 20 Phase Shifting 15 Evasion (%) 63 Targeting Accuracy 8 Target Analysis 6 Core Analysis 8 Recoil Reduction 4 Kinecelleration 40 Offensive Hacking 36 Defensive Hacking 14 Authchip Count 1 Item Schematics ----------------- Huge Storage Unit | -9/Materials | Scanalyzed Exp. Sensor Array | -8/Materials | Scanalyzed Imp. Weapon Shielding | -7/Factory | Scanalyzed Imp. Medium Armor Plating | -7/Factory | Hacked Lrn. Proton Cannon | -7/Factory | Hacked Rocket Array | -7/Factory | Hacked Combat Drone Bay | -7/Data Miner | Free Lgt. Regenerative Plating | -7/Data Miner | Free Cld. Cesium-ion Thruster | -7/Data Miner | Free Exp. Power Shielding | -7/Data Miner | Free Imp. Lightning Gun | -7/Data Miner | Free Arm. Medium Treads | -7/Data Miner | Free Imp. Coolant Injector | -7/Data Miner | Free Mass Driver | -7/Data Miner | Free Fission Core | -7/Data Miner | Free Gyrokinetic Inverter | -7/Data Miner | Free Assault Drone Bay | -5/Zhirov | Free Robot Schematics ------------------ B-48 Gladiator | -7/Data Miner | Free G-47 Trooper | -7/Data Miner | Free X-67 Chaingunner | -7/Data Miner | Free R-10 Processor | -7/Data Miner | Free A-15 Conveyor | -7/Data Miner | Free Fabricated ------------ Combat Drone Bay | x1 | -6/Factory Arm. Medium Treads | x2 | -6/Factory | Authchip Adv. Terrain Scanner | x2 | -6/Factory | Preloaded Combat Drone Bay | x1 | -6/Factory Assault Drone Bay | x1 | -4/Factory Rocket Array | x1 | -4/Factory Assault Drone Bay | x1 | -4/Factory Alien Tech Used ----------------- Integrated Dissipator Achievements -------------- All-out Warlord Death Machine More Power To You Rambo Short-term Sacrifices Sniper Victory By Combat Challenges ------------ None Game ------ Seed StructuralFlakSabre Manual? 0 Play Time 05:33:10 Cumulative 123.8 hours Start 2024.01.17 @ 21:48:14 End 2024.01.19 @ 15:21:02 Sessions 14 Manual Loads 0 Difficulty Rogue Special Mode None Game No. 122 Rogue 122 Adventurer 0 Explorer 0 Win Type 0 Total 2 Types 2/0/0/0/0/0/0/0/0 Lore% 53 Gallery% 61 Achievement% 53 Wizard Run 0 Options --------- ASCII 0 Keyboard 1 Movement Numpad Keybinds 0 Fullscreen 2 Font 18/SmallcapsGlow Map View 76x50 Tactical HUD 1 Map Filters NONE Filters NONE Steam 1 RUN: 8684922e-ff41-4cdf-ab8a-75190b97f1c5